Workbook

Sheet СЕНТЯБРЬ ТАБЕЛЬ АДМ
A5: название структурного подразделения
I6: ГРАФИК РАБОТЫ | AQ6: с | AV6: по
E7: обслуживающего персонала на | R7: =IF(DAY(D48)>=28,EDATE(D48,1),D48) -> 2020-09-01 | X7: года | AR7: Рабочих дней | AV7: =VLOOKUP(AM8,'[1]производственный календарь '!$B$2:$D$13,3,0) -> 22 | AW7: Рабочих часов | BF7: =VLOOKUP(AM8,'[1]производственный календарь '!$B$2:D13,2,0) -> 176
R8: МАРТ | AM8: СЕНТЯБРЬ
A9: № п/п | B9: Табельний номер | C9: Фамилия, и., о. | D9: Профессия, должность | E9: номер | F9: Отметки о явках и неявках на работу по числам месяца (часов) | AM9: отработано за месяц | AU9: Всего неявок | AV9: Дни неявок | BE9: Выходные дни
F10: 1 | G10: 2 | H10: 3 | I10: 4 | J10: 5 | K10: 6 | L10: 7 | M10: 8 | N10: 9 | O10: 10 | P10: 11 | Q10: 12 | R10: 13 | S10: 14 | T10: 15 | U10: X | V10: 16 | W10: 17 | X10: 18 | Y10: 19 | Z10: 20 | AA10: 21 | AB10: 22 | AC10: 23 | AD10: 24 | AE10: 25 | AF10: 26 | AG10: 27 | AH10: 28 | AI10: 29 | AJ10: 30 | AK10: 31 | AL10: дни явок | AM10: всего отработано | AN10: часов | AV10: Очередной отпуск | AW10: Больничные | AX10: Бесплатный отпуск (А) | AY10: Отпуск родовой | AZ10: Учеьный отпуск | BA10: Отпуск ЧАЭС | BB10: Прогул | BC10: Отпуск женский | BD10: Командировка
AN11: всего отработано | AO11: из них
AO12: Ночные | AP12: Вечерние | AQ12: Праздничные | AR12: Сверхурочные | AS12: Работы в выходной | AT12: Переработка
U13: Х
A14: 1 | B14: 2 | C14: 3 | D14: 4 | E14: 5 | U14: 6 | AL14: 7 | AN14: 9 | AU14: 10 | BE14: 11 | BH14: Столбец1
BH15: управляющий участка
A20: =IF(ISBLANK(C20),"",COUNTA($C$16:C20)) -> 1 | C20: ='[1]ГРАФИК И.Б. ИЮНЬ 2020 '!F39 -> Лагутенко В.А., кассир билетный | D20: кассир билетный | F20: =IFERROR(INDEX('ГРАФИК И.Б. СЕНТЯБРЬ'!$AC$42:$HF$42,1,MATCH(F$10,'ГРАФИК И.Б. СЕНТЯБРЬ'!$AC$19:$HF$19,0)),"") -> 0.5 | G20: =IFERROR(INDEX('ГРАФИК И.Б. СЕНТЯБРЬ'!$AC$42:$HF$42,1,MATCH(G$10,'ГРАФИК И.Б. СЕНТЯБРЬ'!$AC$19:$HF$19,0)),"") -> 0 | H20: =IFERROR(INDEX('ГРАФИК И.Б. СЕНТЯБРЬ'!$AC$42:$HF$42,1,MATCH(H$10,'ГРАФИК И.Б. СЕНТЯБРЬ'!$AC$19:$HF$19,0)),"") -> 0.4583333333 | I20: =IFERROR(INDEX('ГРАФИК И.Б. СЕНТЯБРЬ'!$AC$42:$HF$42,1,MATCH(I$10,'ГРАФИК И.Б. СЕНТЯБРЬ'!$AC$19:$HF$19,0)),"") -> 0 | J20: =IFERROR(INDEX('ГРАФИК И.Б. СЕНТЯБРЬ'!$AC$42:$HF$42,1,MATCH(J$10,'ГРАФИК И.Б. СЕНТЯБРЬ'!$AC$19:$HF$19,0)),"") -> 0.5 | K20: =IFERROR(INDEX('ГРАФИК И.Б. СЕНТЯБРЬ'!$AC$42:$HF$42,1,MATCH(K$10,'ГРАФИК И.Б. СЕНТЯБРЬ'!$AC$19:$HF$19,0)),"") -> 0 | L20: =IFERROR(INDEX('ГРАФИК И.Б. СЕНТЯБРЬ'!$AC$42:$HF$42,1,MATCH(L$10,'ГРАФИК И.Б. СЕНТЯБРЬ'!$AC$19:$HF$19,0)),"") -> 0.4583333333 | M20: =IFERROR(INDEX('ГРАФИК И.Б. СЕНТЯБРЬ'!$AC$42:$HF$42,1,MATCH(M$10,'ГРАФИК И.Б. СЕНТЯБРЬ'!$AC$19:$HF$19,0)),"") -> 0 | N20: =IFERROR(INDEX('ГРАФИК И.Б. СЕНТЯБРЬ'!$AC$42:$HF$42,1,MATCH(N$10,'ГРАФИК И.Б. СЕНТЯБРЬ'!$AC$19:$HF$19,0)),"") -> 0.4583333333 | O20: =IFERROR(INDEX('ГРАФИК И.Б. СЕНТЯБРЬ'!$AC$42:$HF$42,1,MATCH(O$10,'ГРАФИК И.Б. СЕНТЯБРЬ'!$AC$19:$HF$19,0)),"") -> 0 | P20: =IFERROR(INDEX('ГРАФИК И.Б. СЕНТЯБРЬ'!$AC$42:$HF$42,1,MATCH(P$10,'ГРАФИК И.Б. СЕНТЯБРЬ'!$AC$19:$HF$19,0)),"") -> 0.4583333333 | Q20: =IFERROR(INDEX('ГРАФИК И.Б. СЕНТЯБРЬ'!$AC$42:$HF$42,1,MATCH(Q$10,'ГРАФИК И.Б. СЕНТЯБРЬ'!$AC$19:$HF$19,0)),"") -> 0 | R20: =IFERROR(INDEX('ГРАФИК И.Б. СЕНТЯБРЬ'!$AC$42:$HF$42,1,MATCH(R$10,'ГРАФИК И.Б. СЕНТЯБРЬ'!$AC$19:$HF$19,0)),"") -> 0.5 | S20: =IFERROR(INDEX('ГРАФИК И.Б. СЕНТЯБРЬ'!$AC$42:$HF$42,1,MATCH(S$10,'ГРАФИК И.Б. СЕНТЯБРЬ'!$AC$19:$HF$19,0)),"") -> 0 | T20: =IFERROR(INDEX('ГРАФИК И.Б. СЕНТЯБРЬ'!$AC$42:$HF$42,1,MATCH(T$10,'ГРАФИК И.Б. СЕНТЯБРЬ'!$AC$19:$HF$19,0)),"") -> 0.5 | U20: =IFERROR(INDEX('ГРАФИК И.Б. СЕНТЯБРЬ'!$AC$42:$HF$42,1,MATCH(U$10,'ГРАФИК И.Б. СЕНТЯБРЬ'!$AC$19:$HF$19,0)),"") ->  | V20: =IFERROR(INDEX('ГРАФИК И.Б. СЕНТЯБРЬ'!$AC$42:$HF$42,1,MATCH(V$10,'ГРАФИК И.Б. СЕНТЯБРЬ'!$AC$19:$HF$19,0)),"") -> 0 | W20: =IFERROR(INDEX('ГРАФИК И.Б. СЕНТЯБРЬ'!$AC$42:$HF$42,1,MATCH(W$10,'ГРАФИК И.Б. СЕНТЯБРЬ'!$AC$19:$HF$19,0)),"") -> 0.5 | X20: =IFERROR(INDEX('ГРАФИК И.Б. СЕНТЯБРЬ'!$AC$42:$HF$42,1,MATCH(X$10,'ГРАФИК И.Б. СЕНТЯБРЬ'!$AC$19:$HF$19,0)),"") -> 0 | Y20: =IFERROR(INDEX('ГРАФИК И.Б. СЕНТЯБРЬ'!$AC$42:$HF$42,1,MATCH(Y$10,'ГРАФИК И.Б. СЕНТЯБРЬ'!$AC$19:$HF$19,0)),"") -> 0.5 | Z20: =IFERROR(INDEX('ГРАФИК И.Б. СЕНТЯБРЬ'!$AC$42:$HF$42,1,MATCH(Z$10,'ГРАФИК И.Б. СЕНТЯБРЬ'!$AC$19:$HF$19,0)),"") -> 0 | AA20: =IFERROR(INDEX('ГРАФИК И.Б. СЕНТЯБРЬ'!$AC$42:$HF$42,1,MATCH(AA$10,'ГРАФИК И.Б. СЕНТЯБРЬ'!$AC$19:$HF$19,0)),"") -> 0.5 | AB20: =IFERROR(INDEX('ГРАФИК И.Б. СЕНТЯБРЬ'!$AC$42:$HF$42,1,MATCH(AB$10,'ГРАФИК И.Б. СЕНТЯБРЬ'!$AC$19:$HF$19,0)),"") -> 0 | AC20: =IFERROR(INDEX('ГРАФИК И.Б. СЕНТЯБРЬ'!$AC$42:$HF$42,1,MATCH(AC$10,'ГРАФИК И.Б. СЕНТЯБРЬ'!$AC$19:$HF$19,0)),"") -> 0.5 | AD20: =IFERROR(INDEX('ГРАФИК И.Б. СЕНТЯБРЬ'!$AC$42:$HF$42,1,MATCH(AD$10,'ГРАФИК И.Б. СЕНТЯБРЬ'!$AC$19:$HF$19,0)),"") -> 0 | AE20: =IFERROR(INDEX('ГРАФИК И.Б. СЕНТЯБРЬ'!$AC$42:$HF$42,1,MATCH(AE$10,'ГРАФИК И.Б. СЕНТЯБРЬ'!$AC$19:$HF$19,0)),"") -> 0.5 | AF20: =IFERROR(INDEX('ГРАФИК И.Б. СЕНТЯБРЬ'!$AC$42:$HF$42,1,MATCH(AF$10,'ГРАФИК И.Б. СЕНТЯБРЬ'!$AC$19:$HF$19,0)),"") -> 0 | AG20: =IFERROR(INDEX('ГРАФИК И.Б. СЕНТЯБРЬ'!$AC$42:$HF$42,1,MATCH(AG$10,'ГРАФИК И.Б. СЕНТЯБРЬ'!$AC$19:$HF$19,0)),"") -> 0.5 | AH20: =IFERROR(INDEX('ГРАФИК И.Б. СЕНТЯБРЬ'!$AC$42:$HF$42,1,MATCH(AH$10,'ГРАФИК И.Б. СЕНТЯБРЬ'!$AC$19:$HF$19,0)),"") -> 0 | AI20: =IFERROR(INDEX('ГРАФИК И.Б. СЕНТЯБРЬ'!$AC$42:$HF$42,1,MATCH(AI$10,'ГРАФИК И.Б. СЕНТЯБРЬ'!$AC$19:$HF$19,0)),"") -> 0.5 | AJ20: =IFERROR(INDEX('ГРАФИК И.Б. СЕНТЯБРЬ'!$AC$42:$HF$42,1,MATCH(AJ$10,'ГРАФИК И.Б. СЕНТЯБРЬ'!$AC$19:$HF$19,0)),"") -> 0 | AK20: =IFERROR(INDEX('ГРАФИК И.Б. СЕНТЯБРЬ'!$AC$42:$HF$42,1,MATCH(AK$10,'ГРАФИК И.Б. СЕНТЯБРЬ'!$AC$19:$HF$19,0)),"") ->  | AL20: =COUNTIF($F20:$AK20,">0") -> 15 | AM20: =SUM($F20:$AK20) -> 7.333333333
F21: =IF(F20=0,IF(INDEX( 'ГРАФИК И.Б. СЕНТЯБРЬ'!$AC$21:$HF$44,MATCH($C20, 'ГРАФИК И.Б. СЕНТЯБРЬ'!$F$21:$F$44),MATCH(F$10, 'ГРАФИК И.Б. СЕНТЯБРЬ'!$AC$19:$HF$19,))="ОТ","ОТ","В"),"Я") -> Я | G21: =IF(G20=0,IF(INDEX( 'ГРАФИК И.Б. СЕНТЯБРЬ'!$AC$21:$HF$44,MATCH($C20, 'ГРАФИК И.Б. СЕНТЯБРЬ'!$F$21:$F$44),MATCH(G$10, 'ГРАФИК И.Б. СЕНТЯБРЬ'!$AC$19:$HF$19,))="ОТ","ОТ","В"),"Я") ->  | H21: =IF(H20=0,IF(INDEX( 'ГРАФИК И.Б. СЕНТЯБРЬ'!$AC$21:$HF$44,MATCH($C20, 'ГРАФИК И.Б. СЕНТЯБРЬ'!$F$21:$F$44),MATCH(H$10, 'ГРАФИК И.Б. СЕНТЯБРЬ'!$AC$19:$HF$19,))="ОТ","ОТ","В"),"Я") -> Я | I21: =IF(I20=0,IF(INDEX( 'ГРАФИК И.Б. СЕНТЯБРЬ'!$AC$21:$HF$44,MATCH($C20, 'ГРАФИК И.Б. СЕНТЯБРЬ'!$F$21:$F$44),MATCH(I$10, 'ГРАФИК И.Б. СЕНТЯБРЬ'!$AC$19:$HF$19,))="ОТ","ОТ","В"),"Я") ->  | J21: =IF(J20=0,IF(INDEX( 'ГРАФИК И.Б. СЕНТЯБРЬ'!$AC$21:$HF$44,MATCH($C20, 'ГРАФИК И.Б. СЕНТЯБРЬ'!$F$21:$F$44),MATCH(J$10, 'ГРАФИК И.Б. СЕНТЯБРЬ'!$AC$19:$HF$19,))="ОТ","ОТ","В"),"Я") -> Я | K21: =IF(K20=0,IF(INDEX( 'ГРАФИК И.Б. СЕНТЯБРЬ'!$AC$21:$HF$44,MATCH($C20, 'ГРАФИК И.Б. СЕНТЯБРЬ'!$F$21:$F$44),MATCH(K$10, 'ГРАФИК И.Б. СЕНТЯБРЬ'!$AC$19:$HF$19,))="ОТ","ОТ","В"),"Я") ->  | L21: =IF(L20=0,IF(INDEX( 'ГРАФИК И.Б. СЕНТЯБРЬ'!$AC$21:$HF$44,MATCH($C20, 'ГРАФИК И.Б. СЕНТЯБРЬ'!$F$21:$F$44),MATCH(L$10, 'ГРАФИК И.Б. СЕНТЯБРЬ'!$AC$19:$HF$19,))="ОТ","ОТ","В"),"Я") -> Я | M21: =IF(M20=0,IF(INDEX( 'ГРАФИК И.Б. СЕНТЯБРЬ'!$AC$21:$HF$44,MATCH($C20, 'ГРАФИК И.Б. СЕНТЯБРЬ'!$F$21:$F$44),MATCH(M$10, 'ГРАФИК И.Б. СЕНТЯБРЬ'!$AC$19:$HF$19,))="ОТ","ОТ","В"),"Я") ->  | N21: =IF(N20=0,IF(INDEX( 'ГРАФИК И.Б. СЕНТЯБРЬ'!$AC$21:$HF$44,MATCH($C20, 'ГРАФИК И.Б. СЕНТЯБРЬ'!$F$21:$F$44),MATCH(N$10, 'ГРАФИК И.Б. СЕНТЯБРЬ'!$AC$19:$HF$19,))="ОТ","ОТ","В"),"Я") -> Я | O21: =IF(O20=0,IF(INDEX( 'ГРАФИК И.Б. СЕНТЯБРЬ'!$AC$21:$HF$44,MATCH($C20, 'ГРАФИК И.Б. СЕНТЯБРЬ'!$F$21:$F$44),MATCH(O$10, 'ГРАФИК И.Б. СЕНТЯБРЬ'!$AC$19:$HF$19,))="ОТ","ОТ","В"),"Я") ->  | P21: =IF(P20=0,IF(INDEX( 'ГРАФИК И.Б. СЕНТЯБРЬ'!$AC$21:$HF$44,MATCH($C20, 'ГРАФИК И.Б. СЕНТЯБРЬ'!$F$21:$F$44),MATCH(P$10, 'ГРАФИК И.Б. СЕНТЯБРЬ'!$AC$19:$HF$19,))="ОТ","ОТ","В"),"Я") -> Я | Q21: =IF(Q20=0,IF(INDEX( 'ГРАФИК И.Б. СЕНТЯБРЬ'!$AC$21:$HF$44,MATCH($C20, 'ГРАФИК И.Б. СЕНТЯБРЬ'!$F$21:$F$44),MATCH(Q$10, 'ГРАФИК И.Б. СЕНТЯБРЬ'!$AC$19:$HF$19,))="ОТ","ОТ","В"),"Я") ->  | R21: =IF(R20=0,IF(INDEX( 'ГРАФИК И.Б. СЕНТЯБРЬ'!$AC$21:$HF$44,MATCH($C20, 'ГРАФИК И.Б. СЕНТЯБРЬ'!$F$21:$F$44),MATCH(R$10, 'ГРАФИК И.Б. СЕНТЯБРЬ'!$AC$19:$HF$19,))="ОТ","ОТ","В"),"Я") -> Я | S21: =IF(S20=0,IF(INDEX( 'ГРАФИК И.Б. СЕНТЯБРЬ'!$AC$21:$HF$44,MATCH($C20, 'ГРАФИК И.Б. СЕНТЯБРЬ'!$F$21:$F$44),MATCH(S$10, 'ГРАФИК И.Б. СЕНТЯБРЬ'!$AC$19:$HF$19,))="ОТ","ОТ","В"),"Я") ->  | T21: =IF(T20=0,IF(INDEX( 'ГРАФИК И.Б. СЕНТЯБРЬ'!$AC$21:$HF$44,MATCH($C20, 'ГРАФИК И.Б. СЕНТЯБРЬ'!$F$21:$F$44),MATCH(T$10, 'ГРАФИК И.Б. СЕНТЯБРЬ'!$AC$19:$HF$19,))="ОТ","ОТ","В"),"Я") -> Я | U21: =IF(U20=0,IF(INDEX( 'ГРАФИК И.Б. СЕНТЯБРЬ'!$AC$21:$HF$44,MATCH($C20, 'ГРАФИК И.Б. СЕНТЯБРЬ'!$F$21:$F$44),MATCH(U$10, 'ГРАФИК И.Б. СЕНТЯБРЬ'!$AC$19:$HF$19,))="ОТ","ОТ","В"),"Я") -> Я | V21: =IF(V20=0,IF(INDEX( 'ГРАФИК И.Б. СЕНТЯБРЬ'!$AC$21:$HF$44,MATCH($C20, 'ГРАФИК И.Б. СЕНТЯБРЬ'!$F$21:$F$44),MATCH(V$10, 'ГРАФИК И.Б. СЕНТЯБРЬ'!$AC$19:$HF$19,))="ОТ","ОТ","В"),"Я") ->  | W21: =IF(W20=0,IF(INDEX( 'ГРАФИК И.Б. СЕНТЯБРЬ'!$AC$21:$HF$44,MATCH($C20, 'ГРАФИК И.Б. СЕНТЯБРЬ'!$F$21:$F$44),MATCH(W$10, 'ГРАФИК И.Б. СЕНТЯБРЬ'!$AC$19:$HF$19,))="ОТ","ОТ","В"),"Я") -> Я | X21: =IF(X20=0,IF(INDEX( 'ГРАФИК И.Б. СЕНТЯБРЬ'!$AC$21:$HF$44,MATCH($C20, 'ГРАФИК И.Б. СЕНТЯБРЬ'!$F$21:$F$44),MATCH(X$10, 'ГРАФИК И.Б. СЕНТЯБРЬ'!$AC$19:$HF$19,))="ОТ","ОТ","В"),"Я") ->  | Y21: =IF(Y20=0,IF(INDEX( 'ГРАФИК И.Б. СЕНТЯБРЬ'!$AC$21:$HF$44,MATCH($C20, 'ГРАФИК И.Б. СЕНТЯБРЬ'!$F$21:$F$44),MATCH(Y$10, 'ГРАФИК И.Б. СЕНТЯБРЬ'!$AC$19:$HF$19,))="ОТ","ОТ","В"),"Я") -> Я | Z21: =IF(Z20=0,IF(INDEX( 'ГРАФИК И.Б. СЕНТЯБРЬ'!$AC$21:$HF$44,MATCH($C20, 'ГРАФИК И.Б. СЕНТЯБРЬ'!$F$21:$F$44),MATCH(Z$10, 'ГРАФИК И.Б. СЕНТЯБРЬ'!$AC$19:$HF$19,))="ОТ","ОТ","В"),"Я") ->  | AA21: =IF(AA20=0,IF(INDEX( 'ГРАФИК И.Б. СЕНТЯБРЬ'!$AC$21:$HF$44,MATCH($C20, 'ГРАФИК И.Б. СЕНТЯБРЬ'!$F$21:$F$44),MATCH(AA$10, 'ГРАФИК И.Б. СЕНТЯБРЬ'!$AC$19:$HF$19,))="ОТ","ОТ","В"),"Я") -> Я | AB21: =IF(AB20=0,IF(INDEX( 'ГРАФИК И.Б. СЕНТЯБРЬ'!$AC$21:$HF$44,MATCH($C20, 'ГРАФИК И.Б. СЕНТЯБРЬ'!$F$21:$F$44),MATCH(AB$10, 'ГРАФИК И.Б. СЕНТЯБРЬ'!$AC$19:$HF$19,))="ОТ","ОТ","В"),"Я") ->  | AC21: =IF(AC20=0,IF(INDEX( 'ГРАФИК И.Б. СЕНТЯБРЬ'!$AC$21:$HF$44,MATCH($C20, 'ГРАФИК И.Б. СЕНТЯБРЬ'!$F$21:$F$44),MATCH(AC$10, 'ГРАФИК И.Б. СЕНТЯБРЬ'!$AC$19:$HF$19,))="ОТ","ОТ","В"),"Я") -> Я | AD21: =IF(AD20=0,IF(INDEX( 'ГРАФИК И.Б. СЕНТЯБРЬ'!$AC$21:$HF$44,MATCH($C20, 'ГРАФИК И.Б. СЕНТЯБРЬ'!$F$21:$F$44),MATCH(AD$10, 'ГРАФИК И.Б. СЕНТЯБРЬ'!$AC$19:$HF$19,))="ОТ","ОТ","В"),"Я") ->  | AE21: =IF(AE20=0,IF(INDEX( 'ГРАФИК И.Б. СЕНТЯБРЬ'!$AC$21:$HF$44,MATCH($C20, 'ГРАФИК И.Б. СЕНТЯБРЬ'!$F$21:$F$44),MATCH(AE$10, 'ГРАФИК И.Б. СЕНТЯБРЬ'!$AC$19:$HF$19,))="ОТ","ОТ","В"),"Я") -> Я | AF21: =IF(AF20=0,IF(INDEX( 'ГРАФИК И.Б. СЕНТЯБРЬ'!$AC$21:$HF$44,MATCH($C20, 'ГРАФИК И.Б. СЕНТЯБРЬ'!$F$21:$F$44),MATCH(AF$10, 'ГРАФИК И.Б. СЕНТЯБРЬ'!$AC$19:$HF$19,))="ОТ","ОТ","В"),"Я") ->  | AG21: =IF(AG20=0,IF(INDEX( 'ГРАФИК И.Б. СЕНТЯБРЬ'!$AC$21:$HF$44,MATCH($C20, 'ГРАФИК И.Б. СЕНТЯБРЬ'!$F$21:$F$44),MATCH(AG$10, 'ГРАФИК И.Б. СЕНТЯБРЬ'!$AC$19:$HF$19,))="ОТ","ОТ","В"),"Я") -> Я | AH21: =IF(AH20=0,IF(INDEX( 'ГРАФИК И.Б. СЕНТЯБРЬ'!$AC$21:$HF$44,MATCH($C20, 'ГРАФИК И.Б. СЕНТЯБРЬ'!$F$21:$F$44),MATCH(AH$10, 'ГРАФИК И.Б. СЕНТЯБРЬ'!$AC$19:$HF$19,))="ОТ","ОТ","В"),"Я") ->  | AI21: =IF(AI20=0,IF(INDEX( 'ГРАФИК И.Б. СЕНТЯБРЬ'!$AC$21:$HF$44,MATCH($C20, 'ГРАФИК И.Б. СЕНТЯБРЬ'!$F$21:$F$44),MATCH(AI$10, 'ГРАФИК И.Б. СЕНТЯБРЬ'!$AC$19:$HF$19,))="ОТ","ОТ","В"),"Я") -> Я | AJ21: =IF(AJ20=0,IF(INDEX( 'ГРАФИК И.Б. СЕНТЯБРЬ'!$AC$21:$HF$44,MATCH($C20, 'ГРАФИК И.Б. СЕНТЯБРЬ'!$F$21:$F$44),MATCH(AJ$10, 'ГРАФИК И.Б. СЕНТЯБРЬ'!$AC$19:$HF$19,))="ОТ","ОТ","В"),"Я") ->  | AK21: =IF(AK20=0,IF(INDEX( 'ГРАФИК И.Б. СЕНТЯБРЬ'!$AC$21:$HF$44,MATCH($C20, 'ГРАФИК И.Б. СЕНТЯБРЬ'!$F$21:$F$44),MATCH(AK$10, 'ГРАФИК И.Б. СЕНТЯБРЬ'!$AC$19:$HF$19,))="ОТ","ОТ","В"),"Я") -> Я
A22: =IF(ISBLANK(C22),"",COUNTA($C$16:C22)) -> 2 | C22: ='[1]ГРАФИК И.Б. ИЮНЬ 2020 '!F45 -> Купцова Г.И., кассир билетный | D22: кассир билетный | F22: =IFERROR(INDEX('ГРАФИК И.Б. СЕНТЯБРЬ'!$AC$48:$HF$48,1,MATCH(F$10,'ГРАФИК И.Б. СЕНТЯБРЬ'!$AC$19:$HF$19,0)),"") -> 0 | G22: =IFERROR(INDEX('ГРАФИК И.Б. СЕНТЯБРЬ'!$AC$48:$HF$48,1,MATCH(G$10,'ГРАФИК И.Б. СЕНТЯБРЬ'!$AC$19:$HF$19,0)),"") -> 0.5 | H22: =IFERROR(INDEX('ГРАФИК И.Б. СЕНТЯБРЬ'!$AC$48:$HF$48,1,MATCH(H$10,'ГРАФИК И.Б. СЕНТЯБРЬ'!$AC$19:$HF$19,0)),"") -> 0 | I22: =IFERROR(INDEX('ГРАФИК И.Б. СЕНТЯБРЬ'!$AC$48:$HF$48,1,MATCH(I$10,'ГРАФИК И.Б. СЕНТЯБРЬ'!$AC$19:$HF$19,0)),"") -> 0.4583333333 | J22: =IFERROR(INDEX('ГРАФИК И.Б. СЕНТЯБРЬ'!$AC$48:$HF$48,1,MATCH(J$10,'ГРАФИК И.Б. СЕНТЯБРЬ'!$AC$19:$HF$19,0)),"") -> 0 | K22: =IFERROR(INDEX('ГРАФИК И.Б. СЕНТЯБРЬ'!$AC$48:$HF$48,1,MATCH(K$10,'ГРАФИК И.Б. СЕНТЯБРЬ'!$AC$19:$HF$19,0)),"") -> 0.5 | L22: =IFERROR(INDEX('ГРАФИК И.Б. СЕНТЯБРЬ'!$AC$48:$HF$48,1,MATCH(L$10,'ГРАФИК И.Б. СЕНТЯБРЬ'!$AC$19:$HF$19,0)),"") -> 0 | M22: =IFERROR(INDEX('ГРАФИК И.Б. СЕНТЯБРЬ'!$AC$48:$HF$48,1,MATCH(M$10,'ГРАФИК И.Б. СЕНТЯБРЬ'!$AC$19:$HF$19,0)),"") -> 0.4583333333 | N22: =IFERROR(INDEX('ГРАФИК И.Б. СЕНТЯБРЬ'!$AC$48:$HF$48,1,MATCH(N$10,'ГРАФИК И.Б. СЕНТЯБРЬ'!$AC$19:$HF$19,0)),"") -> 0 | O22: =IFERROR(INDEX('ГРАФИК И.Б. СЕНТЯБРЬ'!$AC$48:$HF$48,1,MATCH(O$10,'ГРАФИК И.Б. СЕНТЯБРЬ'!$AC$19:$HF$19,0)),"") -> 0.4583333333 | P22: =IFERROR(INDEX('ГРАФИК И.Б. СЕНТЯБРЬ'!$AC$48:$HF$48,1,MATCH(P$10,'ГРАФИК И.Б. СЕНТЯБРЬ'!$AC$19:$HF$19,0)),"") -> 0 | Q22: =IFERROR(INDEX('ГРАФИК И.Б. СЕНТЯБРЬ'!$AC$48:$HF$48,1,MATCH(Q$10,'ГРАФИК И.Б. СЕНТЯБРЬ'!$AC$19:$HF$19,0)),"") -> 0.5 | R22: =IFERROR(INDEX('ГРАФИК И.Б. СЕНТЯБРЬ'!$AC$48:$HF$48,1,MATCH(R$10,'ГРАФИК И.Б. СЕНТЯБРЬ'!$AC$19:$HF$19,0)),"") -> 0 | S22: =IFERROR(INDEX('ГРАФИК И.Б. СЕНТЯБРЬ'!$AC$48:$HF$48,1,MATCH(S$10,'ГРАФИК И.Б. СЕНТЯБРЬ'!$AC$19:$HF$19,0)),"") -> 0.4583333333 | T22: =IFERROR(INDEX('ГРАФИК И.Б. СЕНТЯБРЬ'!$AC$48:$HF$48,1,MATCH(T$10,'ГРАФИК И.Б. СЕНТЯБРЬ'!$AC$19:$HF$19,0)),"") -> 0 | U22: =IFERROR(INDEX('ГРАФИК И.Б. СЕНТЯБРЬ'!$AC$48:$HF$48,1,MATCH(U$10,'ГРАФИК И.Б. СЕНТЯБРЬ'!$AC$19:$HF$19,0)),"") ->  | V22: =IFERROR(INDEX('ГРАФИК И.Б. СЕНТЯБРЬ'!$AC$48:$HF$48,1,MATCH(V$10,'ГРАФИК И.Б. СЕНТЯБРЬ'!$AC$19:$HF$19,0)),"") -> 0.5 | W22: =IFERROR(INDEX('ГРАФИК И.Б. СЕНТЯБРЬ'!$AC$48:$HF$48,1,MATCH(W$10,'ГРАФИК И.Б. СЕНТЯБРЬ'!$AC$19:$HF$19,0)),"") -> 0 | X22: =IFERROR(INDEX('ГРАФИК И.Б. СЕНТЯБРЬ'!$AC$48:$HF$48,1,MATCH(X$10,'ГРАФИК И.Б. СЕНТЯБРЬ'!$AC$19:$HF$19,0)),"") -> 0.5 | Y22: =IFERROR(INDEX('ГРАФИК И.Б. СЕНТЯБРЬ'!$AC$48:$HF$48,1,MATCH(Y$10,'ГРАФИК И.Б. СЕНТЯБРЬ'!$AC$19:$HF$19,0)),"") -> 0 | Z22: =IFERROR(INDEX('ГРАФИК И.Б. СЕНТЯБРЬ'!$AC$48:$HF$48,1,MATCH(Z$10,'ГРАФИК И.Б. СЕНТЯБРЬ'!$AC$19:$HF$19,0)),"") -> 0.5 | AA22: =IFERROR(INDEX('ГРАФИК И.Б. СЕНТЯБРЬ'!$AC$48:$HF$48,1,MATCH(AA$10,'ГРАФИК И.Б. СЕНТЯБРЬ'!$AC$19:$HF$19,0)),"") -> 0 | AB22: =IFERROR(INDEX('ГРАФИК И.Б. СЕНТЯБРЬ'!$AC$48:$HF$48,1,MATCH(AB$10,'ГРАФИК И.Б. СЕНТЯБРЬ'!$AC$19:$HF$19,0)),"") -> 0.5 | AC22: =IFERROR(INDEX('ГРАФИК И.Б. СЕНТЯБРЬ'!$AC$48:$HF$48,1,MATCH(AC$10,'ГРАФИК И.Б. СЕНТЯБРЬ'!$AC$19:$HF$19,0)),"") -> 0 | AD22: =IFERROR(INDEX('ГРАФИК И.Б. СЕНТЯБРЬ'!$AC$48:$HF$48,1,MATCH(AD$10,'ГРАФИК И.Б. СЕНТЯБРЬ'!$AC$19:$HF$19,0)),"") -> 0.5 | AE22: =IFERROR(INDEX('ГРАФИК И.Б. СЕНТЯБРЬ'!$AC$48:$HF$48,1,MATCH(AE$10,'ГРАФИК И.Б. СЕНТЯБРЬ'!$AC$19:$HF$19,0)),"") -> 0 | AF22: =IFERROR(INDEX('ГРАФИК И.Б. СЕНТЯБРЬ'!$AC$48:$HF$48,1,MATCH(AF$10,'ГРАФИК И.Б. СЕНТЯБРЬ'!$AC$19:$HF$19,0)),"") -> 0.5 | AG22: =IFERROR(INDEX('ГРАФИК И.Б. СЕНТЯБРЬ'!$AC$48:$HF$48,1,MATCH(AG$10,'ГРАФИК И.Б. СЕНТЯБРЬ'!$AC$19:$HF$19,0)),"") -> 0 | AH22: =IFERROR(INDEX('ГРАФИК И.Б. СЕНТЯБРЬ'!$AC$48:$HF$48,1,MATCH(AH$10,'ГРАФИК И.Б. СЕНТЯБРЬ'!$AC$19:$HF$19,0)),"") -> 0.5 | AI22: =IFERROR(INDEX('ГРАФИК И.Б. СЕНТЯБРЬ'!$AC$48:$HF$48,1,MATCH(AI$10,'ГРАФИК И.Б. СЕНТЯБРЬ'!$AC$19:$HF$19,0)),"") -> 0 | AJ22: =IFERROR(INDEX('ГРАФИК И.Б. СЕНТЯБРЬ'!$AC$48:$HF$48,1,MATCH(AJ$10,'ГРАФИК И.Б. СЕНТЯБРЬ'!$AC$19:$HF$19,0)),"") -> 0.5 | AK22: =IFERROR(INDEX('ГРАФИК И.Б. СЕНТЯБРЬ'!$AC$48:$HF$48,1,MATCH(AK$10,'ГРАФИК И.Б. СЕНТЯБРЬ'!$AC$19:$HF$19,0)),"") ->  | AL22: 15 | AM22: 7.333333333
F23: =IF(F22=0,IF(INDEX( 'ГРАФИК И.Б. СЕНТЯБРЬ'!$AC$21:$HF$50,MATCH($C22, 'ГРАФИК И.Б. СЕНТЯБРЬ'!$F$21:$F$50),MATCH(F$10, 'ГРАФИК И.Б. СЕНТЯБРЬ'!$AC$19:$HF$19,))="ОТ","ОТ","В"),"Я") ->  | G23: =IF(G22=0,IF(INDEX( 'ГРАФИК И.Б. СЕНТЯБРЬ'!$AC$21:$HF$50,MATCH($C22, 'ГРАФИК И.Б. СЕНТЯБРЬ'!$F$21:$F$50),MATCH(G$10, 'ГРАФИК И.Б. СЕНТЯБРЬ'!$AC$19:$HF$19,))="ОТ","ОТ","В"),"Я") -> Я | H23: =IF(H22=0,IF(INDEX( 'ГРАФИК И.Б. СЕНТЯБРЬ'!$AC$21:$HF$50,MATCH($C22, 'ГРАФИК И.Б. СЕНТЯБРЬ'!$F$21:$F$50),MATCH(H$10, 'ГРАФИК И.Б. СЕНТЯБРЬ'!$AC$19:$HF$19,))="ОТ","ОТ","В"),"Я") ->  | I23: =IF(I22=0,IF(INDEX( 'ГРАФИК И.Б. СЕНТЯБРЬ'!$AC$21:$HF$50,MATCH($C22, 'ГРАФИК И.Б. СЕНТЯБРЬ'!$F$21:$F$50),MATCH(I$10, 'ГРАФИК И.Б. СЕНТЯБРЬ'!$AC$19:$HF$19,))="ОТ","ОТ","В"),"Я") -> Я | J23: =IF(J22=0,IF(INDEX( 'ГРАФИК И.Б. СЕНТЯБРЬ'!$AC$21:$HF$50,MATCH($C22, 'ГРАФИК И.Б. СЕНТЯБРЬ'!$F$21:$F$50),MATCH(J$10, 'ГРАФИК И.Б. СЕНТЯБРЬ'!$AC$19:$HF$19,))="ОТ","ОТ","В"),"Я") ->  | K23: =IF(K22=0,IF(INDEX( 'ГРАФИК И.Б. СЕНТЯБРЬ'!$AC$21:$HF$50,MATCH($C22, 'ГРАФИК И.Б. СЕНТЯБРЬ'!$F$21:$F$50),MATCH(K$10, 'ГРАФИК И.Б. СЕНТЯБРЬ'!$AC$19:$HF$19,))="ОТ","ОТ","В"),"Я") -> Я | L23: =IF(L22=0,IF(INDEX( 'ГРАФИК И.Б. СЕНТЯБРЬ'!$AC$21:$HF$50,MATCH($C22, 'ГРАФИК И.Б. СЕНТЯБРЬ'!$F$21:$F$50),MATCH(L$10, 'ГРАФИК И.Б. СЕНТЯБРЬ'!$AC$19:$HF$19,))="ОТ","ОТ","В"),"Я") ->  | M23: =IF(M22=0,IF(INDEX( 'ГРАФИК И.Б. СЕНТЯБРЬ'!$AC$21:$HF$50,MATCH($C22, 'ГРАФИК И.Б. СЕНТЯБРЬ'!$F$21:$F$50),MATCH(M$10, 'ГРАФИК И.Б. СЕНТЯБРЬ'!$AC$19:$HF$19,))="ОТ","ОТ","В"),"Я") -> Я | N23: =IF(N22=0,IF(INDEX( 'ГРАФИК И.Б. СЕНТЯБРЬ'!$AC$21:$HF$50,MATCH($C22, 'ГРАФИК И.Б. СЕНТЯБРЬ'!$F$21:$F$50),MATCH(N$10, 'ГРАФИК И.Б. СЕНТЯБРЬ'!$AC$19:$HF$19,))="ОТ","ОТ","В"),"Я") ->  | O23: =IF(O22=0,IF(INDEX( 'ГРАФИК И.Б. СЕНТЯБРЬ'!$AC$21:$HF$50,MATCH($C22, 'ГРАФИК И.Б. СЕНТЯБРЬ'!$F$21:$F$50),MATCH(O$10, 'ГРАФИК И.Б. СЕНТЯБРЬ'!$AC$19:$HF$19,))="ОТ","ОТ","В"),"Я") -> Я | P23: =IF(P22=0,IF(INDEX( 'ГРАФИК И.Б. СЕНТЯБРЬ'!$AC$21:$HF$50,MATCH($C22, 'ГРАФИК И.Б. СЕНТЯБРЬ'!$F$21:$F$50),MATCH(P$10, 'ГРАФИК И.Б. СЕНТЯБРЬ'!$AC$19:$HF$19,))="ОТ","ОТ","В"),"Я") ->  | Q23: =IF(Q22=0,IF(INDEX( 'ГРАФИК И.Б. СЕНТЯБРЬ'!$AC$21:$HF$50,MATCH($C22, 'ГРАФИК И.Б. СЕНТЯБРЬ'!$F$21:$F$50),MATCH(Q$10, 'ГРАФИК И.Б. СЕНТЯБРЬ'!$AC$19:$HF$19,))="ОТ","ОТ","В"),"Я") -> Я | R23: =IF(R22=0,IF(INDEX( 'ГРАФИК И.Б. СЕНТЯБРЬ'!$AC$21:$HF$50,MATCH($C22, 'ГРАФИК И.Б. СЕНТЯБРЬ'!$F$21:$F$50),MATCH(R$10, 'ГРАФИК И.Б. СЕНТЯБРЬ'!$AC$19:$HF$19,))="ОТ","ОТ","В"),"Я") ->  | S23: =IF(S22=0,IF(INDEX( 'ГРАФИК И.Б. СЕНТЯБРЬ'!$AC$21:$HF$50,MATCH($C22, 'ГРАФИК И.Б. СЕНТЯБРЬ'!$F$21:$F$50),MATCH(S$10, 'ГРАФИК И.Б. СЕНТЯБРЬ'!$AC$19:$HF$19,))="ОТ","ОТ","В"),"Я") -> Я | T23: =IF(T22=0,IF(INDEX( 'ГРАФИК И.Б. СЕНТЯБРЬ'!$AC$21:$HF$50,MATCH($C22, 'ГРАФИК И.Б. СЕНТЯБРЬ'!$F$21:$F$50),MATCH(T$10, 'ГРАФИК И.Б. СЕНТЯБРЬ'!$AC$19:$HF$19,))="ОТ","ОТ","В"),"Я") ->  | U23: =IF(U22=0,IF(INDEX( 'ГРАФИК И.Б. СЕНТЯБРЬ'!$AC$21:$HF$50,MATCH($C22, 'ГРАФИК И.Б. СЕНТЯБРЬ'!$F$21:$F$50),MATCH(U$10, 'ГРАФИК И.Б. СЕНТЯБРЬ'!$AC$19:$HF$19,))="ОТ","ОТ","В"),"Я") -> Я | V23: =IF(V22=0,IF(INDEX( 'ГРАФИК И.Б. СЕНТЯБРЬ'!$AC$21:$HF$50,MATCH($C22, 'ГРАФИК И.Б. СЕНТЯБРЬ'!$F$21:$F$50),MATCH(V$10, 'ГРАФИК И.Б. СЕНТЯБРЬ'!$AC$19:$HF$19,))="ОТ","ОТ","В"),"Я") -> Я | W23: =IF(W22=0,IF(INDEX( 'ГРАФИК И.Б. СЕНТЯБРЬ'!$AC$21:$HF$50,MATCH($C22, 'ГРАФИК И.Б. СЕНТЯБРЬ'!$F$21:$F$50),MATCH(W$10, 'ГРАФИК И.Б. СЕНТЯБРЬ'!$AC$19:$HF$19,))="ОТ","ОТ","В"),"Я") ->  | X23: =IF(X22=0,IF(INDEX( 'ГРАФИК И.Б. СЕНТЯБРЬ'!$AC$21:$HF$50,MATCH($C22, 'ГРАФИК И.Б. СЕНТЯБРЬ'!$F$21:$F$50),MATCH(X$10, 'ГРАФИК И.Б. СЕНТЯБРЬ'!$AC$19:$HF$19,))="ОТ","ОТ","В"),"Я") -> Я | Y23: =IF(Y22=0,IF(INDEX( 'ГРАФИК И.Б. СЕНТЯБРЬ'!$AC$21:$HF$50,MATCH($C22, 'ГРАФИК И.Б. СЕНТЯБРЬ'!$F$21:$F$50),MATCH(Y$10, 'ГРАФИК И.Б. СЕНТЯБРЬ'!$AC$19:$HF$19,))="ОТ","ОТ","В"),"Я") ->  | Z23: =IF(Z22=0,IF(INDEX( 'ГРАФИК И.Б. СЕНТЯБРЬ'!$AC$21:$HF$50,MATCH($C22, 'ГРАФИК И.Б. СЕНТЯБРЬ'!$F$21:$F$50),MATCH(Z$10, 'ГРАФИК И.Б. СЕНТЯБРЬ'!$AC$19:$HF$19,))="ОТ","ОТ","В"),"Я") -> Я | AA23: =IF(AA22=0,IF(INDEX( 'ГРАФИК И.Б. СЕНТЯБРЬ'!$AC$21:$HF$50,MATCH($C22, 'ГРАФИК И.Б. СЕНТЯБРЬ'!$F$21:$F$50),MATCH(AA$10, 'ГРАФИК И.Б. СЕНТЯБРЬ'!$AC$19:$HF$19,))="ОТ","ОТ","В"),"Я") ->  | AB23: =IF(AB22=0,IF(INDEX( 'ГРАФИК И.Б. СЕНТЯБРЬ'!$AC$21:$HF$50,MATCH($C22, 'ГРАФИК И.Б. СЕНТЯБРЬ'!$F$21:$F$50),MATCH(AB$10, 'ГРАФИК И.Б. СЕНТЯБРЬ'!$AC$19:$HF$19,))="ОТ","ОТ","В"),"Я") -> Я | AC23: =IF(AC22=0,IF(INDEX( 'ГРАФИК И.Б. СЕНТЯБРЬ'!$AC$21:$HF$50,MATCH($C22, 'ГРАФИК И.Б. СЕНТЯБРЬ'!$F$21:$F$50),MATCH(AC$10, 'ГРАФИК И.Б. СЕНТЯБРЬ'!$AC$19:$HF$19,))="ОТ","ОТ","В"),"Я") ->  | AD23: =IF(AD22=0,IF(INDEX( 'ГРАФИК И.Б. СЕНТЯБРЬ'!$AC$21:$HF$50,MATCH($C22, 'ГРАФИК И.Б. СЕНТЯБРЬ'!$F$21:$F$50),MATCH(AD$10, 'ГРАФИК И.Б. СЕНТЯБРЬ'!$AC$19:$HF$19,))="ОТ","ОТ","В"),"Я") -> Я | AE23: =IF(AE22=0,IF(INDEX( 'ГРАФИК И.Б. СЕНТЯБРЬ'!$AC$21:$HF$50,MATCH($C22, 'ГРАФИК И.Б. СЕНТЯБРЬ'!$F$21:$F$50),MATCH(AE$10, 'ГРАФИК И.Б. СЕНТЯБРЬ'!$AC$19:$HF$19,))="ОТ","ОТ","В"),"Я") ->  | AF23: =IF(AF22=0,IF(INDEX( 'ГРАФИК И.Б. СЕНТЯБРЬ'!$AC$21:$HF$50,MATCH($C22, 'ГРАФИК И.Б. СЕНТЯБРЬ'!$F$21:$F$50),MATCH(AF$10, 'ГРАФИК И.Б. СЕНТЯБРЬ'!$AC$19:$HF$19,))="ОТ","ОТ","В"),"Я") -> Я | AG23: =IF(AG22=0,IF(INDEX( 'ГРАФИК И.Б. СЕНТЯБРЬ'!$AC$21:$HF$50,MATCH($C22, 'ГРАФИК И.Б. СЕНТЯБРЬ'!$F$21:$F$50),MATCH(AG$10, 'ГРАФИК И.Б. СЕНТЯБРЬ'!$AC$19:$HF$19,))="ОТ","ОТ","В"),"Я") ->  | AH23: =IF(AH22=0,IF(INDEX( 'ГРАФИК И.Б. СЕНТЯБРЬ'!$AC$21:$HF$50,MATCH($C22, 'ГРАФИК И.Б. СЕНТЯБРЬ'!$F$21:$F$50),MATCH(AH$10, 'ГРАФИК И.Б. СЕНТЯБРЬ'!$AC$19:$HF$19,))="ОТ","ОТ","В"),"Я") -> Я | AI23: =IF(AI22=0,IF(INDEX( 'ГРАФИК И.Б. СЕНТЯБРЬ'!$AC$21:$HF$50,MATCH($C22, 'ГРАФИК И.Б. СЕНТЯБРЬ'!$F$21:$F$50),MATCH(AI$10, 'ГРАФИК И.Б. СЕНТЯБРЬ'!$AC$19:$HF$19,))="ОТ","ОТ","В"),"Я") ->  | AJ23: =IF(AJ22=0,IF(INDEX( 'ГРАФИК И.Б. СЕНТЯБРЬ'!$AC$21:$HF$50,MATCH($C22, 'ГРАФИК И.Б. СЕНТЯБРЬ'!$F$21:$F$50),MATCH(AJ$10, 'ГРАФИК И.Б. СЕНТЯБРЬ'!$AC$19:$HF$19,))="ОТ","ОТ","В"),"Я") -> Я | AK23: =IF(AK22=0,IF(INDEX( 'ГРАФИК И.Б. СЕНТЯБРЬ'!$AC$21:$HF$50,MATCH($C22, 'ГРАФИК И.Б. СЕНТЯБРЬ'!$F$21:$F$50),MATCH(AK$10, 'ГРАФИК И.Б. СЕНТЯБРЬ'!$AC$19:$HF$19,))="ОТ","ОТ","В"),"Я") -> Я
F38: =COUNTIF(F16:F37,"Я") -> 1 | G38: 1 | H38: 1 | I38: 1 | J38: 1 | K38: 1 | L38: 1 | M38: 1 | N38: 1 | O38: 1 | P38: 1 | Q38: 1 | R38: 1 | S38: 1 | T38: 1 | U38: 2 | V38: 1 | W38: 1 | X38: 1 | Y38: 1 | Z38: 1 | AA38: 1 | AB38: 1 | AC38: 1 | AD38: 1 | AE38: 1 | AF38: 1 | AG38: 1 | AH38: 1 | AI38: 1 | AJ38: 1 | AM38: =SUM($F$38:$AJ$38) -> 32
AM39: =SUM(H39:AL39) -> 0
P43: почему формула выдаёт ошибку????
D48: 2020-09-01
D49: 2020
D50: 9
D51: 1 | E51: 2 | F51: 3 | G51: 4 | H51: 5 | I51: 6 | J51: 7 | K51: 8 | L51: 9 | M51: 10 | N51: 11 | O51: 12 | P51: 13 | Q51: 14 | R51: 15 | S51: 16 | T51: 17 | U51: 18 | V51: 19 | W51: 20 | X51: 21 | Y51: 22 | Z51: 23 | AA51: 24 | AB51: 25 | AC51: 26 | AD51: 27 | AE51: 28 | AF51: 29 | AG51: 30 | AH51: 31
AM53: 2020-01-01
AM54: 2020-01-02
AM55: 2020-01-03
AM56: 2020-01-04
AM57: 2020-01-05
AM58: 2020-01-06
AM59: 2020-01-07
AM60: 2020-01-08
AM61: 2020-02-23
AM62: 2020-03-08
AM63: 2020-05-01
AM66: 2020-05-09
AM68: 2020-06-12
AM69: 2020-11-04

Sheet ГРАФИК И.Б. СЕНТЯБРЬ
IH1: СЕГОДНЯ
IH2: =TODAY() -> 2020-06-06
IH3: =TEXT(HZ2,"дддд") -> суббота
IH4: =WEEKNUM(IH2,2)&"-ая неделя" -> 23-ая неделя
I5: =IF(OR(#REF!<D3,AND(#REF!<D2,#REF!=D3)),$CN$19,IF(OR(#REF!>D3,AND(#REF!>D2,#REF!=D3)),0,DAY(A2))) ->  | IH5: =IF(OR(#REF!<IC3,AND(#REF!<IC2,#REF!=IC3)),$CN$19,IF(OR(#REF!>IC3,AND(#REF!>IC2,#REF!=IC3)),0,DAY(HZ2))) -> 
IG6: время
HA7: 1 | IB7: количество дней месяца | IE7: =VLOOKUP(HY17,'[1]производственный календарь '!B2:F13,5,0) -> 30
HA8: 2 | IB8: месяц | IE8: =VLOOKUP(HY17,'[1]производственный календарь '!B2:F13,4,0) -> 9 | IG8: Столбец1
IB9: год | IE9: =YEAR(A17) -> 2020 | IG9: 0
GI10: УТВЕРЖДАЮ | IG10: 0.3125
IB11: 0бед | IE11: 0.04166666667 | IG11: 0.3333333333
GI12: _______________С. А. Сорокина | IG12: 0.375
GH13: "__"________2020 | IG13: 0.4166666667
IG14: 0.4583333333 | IJ14: Столбец1 | IK14: Столбец2 | IL14: Столбец3 | IM14: Столбец4 | IN14: Столбец5
A15: ГРАФИК | IG15: 0.5 | IJ15: Сапожников А.С., управляющий участка
A16: УЧЕТА ИСПОЛЬЗОВАНИЯ РАБОЧЕГО ВРЕМЕНИ ОБСЛУЖИВАЮЩЕГО ПЕРСОНАЛА | IG16: 0.5416666667 | IJ16: Сперанский А.А., слесарь-ремонтник
A17: 2020-09-01 | HY17: сентябрь | IG17: 0.5833333333 | IJ17: Лагутенко В.А., кассир билетный Ч
IG18: 0.625 | IJ18: Купцова Г.И., кассир билетный НЧ
A19: № п/п | F19: Фамилия Инициалы | X19: Ставка | AC19: 1900-01-01 | AI19: 2 | AO19: 1900-01-03 | AU19: 4 | BA19: 5 | BG19: 6 | BM19: 7 | BS19: 8 | BY19: 9 | CE19: 10 | CK19: 11 | CQ19: 12 | CW19: 13 | DC19: 14 | DI19: 15 | DO19: 16 | DU19: 17 | EA19: 18 | EG19: 19 | EM19: 20 | ES19: 21 | EY19: 22 | FE19: 23 | FK19: 24 | FQ19: 25 | FW19: 26 | GC19: 27 | GI19: 28 | GO19: =IF(29<=$IE$7,29,"-") -> 29 | GU19: =IF(30<=$IE$7,30,"-") -> 30 | HA19: =IF(31<=$IE$7,31,"-") -> - | HG19: ВСЕГО | IG19: 0.6666666667 | IJ19: Кипкаева Л.А., дворник
HG20: дней | HY20: часов | IG20: 0.7083333333 | IJ20: Сапожников А.С., управляющий участка
AC21: =IFERROR($A$17+AC19-1,"-") -> 2020-09-01 | AI21: =IFERROR($A$17+AI19-1,"-") -> 2020-09-02 | AO21: =IFERROR($A$17+AO19-1,"-") -> 2020-09-03 | AU21: =IFERROR($A$17+AU19-1,"-") -> 2020-09-04 | BA21: =IFERROR($A$17+BA19-1,"-") -> 2020-09-05 | BG21: =IFERROR($A$17+BG19-1,"-") -> 2020-09-06 | BM21: =IFERROR($A$17+BM19-1,"-") -> 2020-09-07 | BS21: =IFERROR($A$17+BS19-1,"-") -> 2020-09-08 | BY21: =IFERROR($A$17+BY19-1,"-") -> 2020-09-09 | CE21: =IFERROR($A$17+CE19-1,"-") -> 2020-09-10 | CK21: =IFERROR($A$17+CK19-1,"-") -> 2020-09-11 | CQ21: =IFERROR($A$17+CQ19-1,"-") -> 2020-09-12 | CW21: =IFERROR($A$17+CW19-1,"-") -> 2020-09-13 | DC21: =IFERROR($A$17+DC19-1,"-") -> 2020-09-14 | DI21: =IFERROR($A$17+DI19-1,"-") -> 2020-09-15 | DO21: =IFERROR($A$17+DO19-1,"-") -> 2020-09-16 | DU21: =IFERROR($A$17+DU19-1,"-") -> 2020-09-17 | EA21: =IFERROR($A$17+EA19-1,"-") -> 2020-09-18 | EG21: =IFERROR($A$17+EG19-1,"-") -> 2020-09-19 | EM21: =IFERROR($A$17+EM19-1,"-") -> 2020-09-20 | ES21: =IFERROR($A$17+ES19-1,"-") -> 2020-09-21 | EY21: =IFERROR($A$17+EY19-1,"-") -> 2020-09-22 | FE21: =IFERROR($A$17+FE19-1,"-") -> 2020-09-23 | FK21: =IFERROR($A$17+FK19-1,"-") -> 2020-09-24 | FQ21: =IFERROR($A$17+FQ19-1,"-") -> 2020-09-25 | FW21: =IFERROR($A$17+FW19-1,"-") -> 2020-09-26 | GC21: =IFERROR($A$17+GC19-1,"-") -> 2020-09-27 | GI21: =IFERROR($A$17+GI19-1,"-") -> 2020-09-28 | GO21: =IFERROR($A$17+GO19-1,"-") -> 2020-09-29 | GU21: =IFERROR($A$17+GU19-1,"-") -> 2020-09-30 | HA21: =IFERROR($A$17+HA19-1,"-") -> - | IG21: 0.75 | IJ21: Сперанский А.А., слесарь-ремонтник
AC22: В | AO22: В | BG22: В | BS22: В | CE22: В | CW22: В | DI22: В | DU22: В | EM22: В | EY22: В | FK22: В | GC22: В | GO22: В | IJ22: Лагутенко В.А., кассир билетный НЧ
AC23: В | AO23: В | BG23: В | BS23: В | CE23: В | CW23: В | DI23: В | DU23: В | EM23: В | EY23: В | FK23: В | GC23: В | GO23: В | IJ23: Купцова Г.И., кассир билетный НЧ
AC24: В | AO24: В | BG24: В | BS24: В | CE24: В | CW24: В | DI24: В | DU24: В | EM24: В | EY24: В | FK24: В | GC24: В | GO24: В | IJ24: Кипкаева Л.А., дворник
IJ25: Морозова Г.Н., контролёр-посадчик аттракциона НЧ
IJ26: Нурлиева Е.А., котролёр-посадчик аттракциона Ч
A27: 1 | F27: Сапожников А.С., управляющий участка | X27: 1 | AC27: 0.4166666667 | AI27: В | AO27: 0.375 | AU27: 0.375 | BA27: 0.375 | BG27: 0.375 | BM27: 0.375 | BS27: 0.4166666667 | BY27: В | CE27: 0.375 | CK27: 0.375 | CQ27: 0.375 | CW27: 0.375 | DC27: 0.375 | DI27: 0.4166666667 | DO27: В | DU27: 0.375 | EA27: 0.375 | EG27: 0.375 | EM27: 0.375 | ES27: 0.375 | EY27: 0.4166666667 | FE27: В | FK27: 0.375 | FQ27: 0.375 | FW27: 0.375 | GC27: 0.375 | GI27: 0.375 | GO27: 0.4166666667 | GU27: В | HG27: =COUNT(AC27:HF27) -> 25 | HY27: =SUM(IFERROR(AC28:HF28-AC27:HF27-AC29:HF29,0)) -> 7.333333333 | IA27: =VLOOKUP($HY$17,'[1]производственный календарь '!$B$2:$F$13,2,0) -> 176 | IC27: 7.333333333 | IG27: 0.7916666667 | IJ27: Нурлиева Е.А., котролёр-посадчик аттракциона НЧ
AC28: 0.6666666667 | AI28: В | AO28: 0.8333333333 | AU28: 0.8333333333 | BA28: 0.8333333333 | BG28: 0.8333333333 | BM28: 0.8333333333 | BS28: 0.6666666667 | BY28: В | CE28: 0.8333333333 | CK28: 0.8333333333 | CQ28: 0.875 | CW28: 0.875 | DC28: 0.8333333333 | DI28: 0.6666666667 | DO28: В | DU28: 0.875 | EA28: 0.875 | EG28: 0.8333333333 | EM28: 0.875 | ES28: 0.875 | EY28: 0.6666666667 | FE28: В | FK28: 0.875 | FQ28: 0.875 | FW28: 0.875 | GC28: 0.875 | GI28: 0.875 | GO28: 0.6666666667 | GU28: В | IG28: 0.8333333333 | IJ28: Хомченко Л.Е., контролёр-посадчик аттракциона НЧ
X29: обед | Y29: обед | AC29: 01:00:00 | AI29: В | AO29: 04:00:00 | AU29: 04:00:00 | BA29: 0.1666666667 | BG29: 0.1666666667 | BM29: 04:00:00 | BS29: 01:00:00 | BY29: В | CE29: 04:00:00 | CK29: 04:00:00 | CQ29: 0.1666666667 | CW29: 0.1666666667 | DC29: 04:00:00 | DI29: 01:00:00 | DO29: В | DU29: 04:00:00 | EA29: 04:00:00 | EG29: 0.1666666667 | EM29: 0.1666666667 | ES29: 04:00:00 | EY29: 01:00:00 | FE29: В | FK29: 04:00:00 | FQ29: 04:00:00 | FW29: 0.1666666667 | GC29: 0.1666666667 | GI29: 04:00:00 | GO29: 01:00:00 | GU29: В | IG29: 0.875 | IJ29: Кондратюк Н.В., сторож
Y30: р.д. | AC30: =IFERROR(AC28-AC27-AC29,0) -> 05:00:00 | AI30: =IFERROR(AI28-AI27-AI29,0) -> 00:00:00 | AO30: =IFERROR(AO28-AO27-AO29,0) -> 07:00:00 | AU30: =IFERROR(AU28-AU27-AU29,0) -> 0.2916666667 | BA30: =IFERROR(BA28-BA27-BA29,0) -> 0.2916666667 | BG30: =IFERROR(BG28-BG27-BG29,0) -> 0.2916666667 | BM30: =IFERROR(BM28-BM27-BM29,0) -> 07:00:00 | BS30: =IFERROR(BS28-BS27-BS29,0) -> 05:00:00 | BY30: =IFERROR(BY28-BY27-BY29,0) -> 00:00:00 | CE30: =IFERROR(CE28-CE27-CE29,0) -> 07:00:00 | CK30: =IFERROR(CK28-CK27-CK29,0) -> 0.2916666667 | CQ30: =IFERROR(CQ28-CQ27-CQ29,0) -> 0.3333333333 | CW30: =IFERROR(CW28-CW27-CW29,0) -> 0.3333333333 | DC30: =IFERROR(DC28-DC27-DC29,0) -> 07:00:00 | DI30: =IFERROR(DI28-DI27-DI29,0) -> 05:00:00 | DO30: =IFERROR(DO28-DO27-DO29,0) -> 00:00:00 | DU30: =IFERROR(DU28-DU27-DU29,0) -> 08:00:00 | EA30: =IFERROR(EA28-EA27-EA29,0) -> 0.3333333333 | EG30: =IFERROR(EG28-EG27-EG29,0) -> 0.2916666667 | EM30: =IFERROR(EM28-EM27-EM29,0) -> 0.3333333333 | ES30: =IFERROR(ES28-ES27-ES29,0) -> 08:00:00 | EY30: =IFERROR(EY28-EY27-EY29,0) -> 05:00:00 | FE30: =IFERROR(FE28-FE27-FE29,0) -> 00:00:00 | FK30: =IFERROR(FK28-FK27-FK29,0) -> 08:00:00 | FQ30: =IFERROR(FQ28-FQ27-FQ29,0) -> 0.3333333333 | FW30: =IFERROR(FW28-FW27-FW29,0) -> 0.3333333333 | GC30: =IFERROR(GC28-GC27-GC29,0) -> 0.3333333333 | GI30: =IFERROR(GI28-GI27-GI29,0) -> 08:00:00 | GO30: =IFERROR(GO28-GO27-GO29,0) -> 05:00:00 | GU30: =IFERROR(GU28-GU27-GU29,0) -> 00:00:00 | HA30: =IFERROR(HA28-HA27-HA29,0) -> 00:00:00 | HY30: =SUM(AC30:HF30) -> 7.333333333 | IG30: 0.9166666667 | IJ30: Лагутенко В.А., кассир билетный НЧ
X31: пр | Y31: пр | HG31: =SUM(AC31:HF31) -> 00:00:00 | IG31: 0.9583333333 | IJ31: Купцова Г.И., кассир билетный Ч
Y32: от | HG32: =COUNTIF(AC33:HF33,"=От") -> 0 | IG32: 1 | IJ32: Морозова Г.Н., контролёр-посадчик аттракциона Ч
A33: 2 | F33: Сперанский А.А., слесарь-ремонтник | X33: 1 | AC33: 0.375 | AI33: 0.375 | AO33: 0.375 | AU33: 0.375 | BA33: 0.375 | BG33: В | BM33: В | BS33: 0.375 | BY33: 0.375 | CE33: 0.375 | CK33: 0.375 | CQ33: 0.375 | CW33: В | DC33: В | DI33: 0.375 | DO33: 0.375 | DU33: 0.375 | EA33: 0.375 | EG33: 0.375 | EM33: В | ES33: В | EY33: 0.375 | FE33: 0.375 | FK33: 0.375 | FQ33: 0.375 | FW33: 0.375 | GC33: В | GI33: В | GO33: 0.375 | GU33: 0.375 | HG33: =COUNT(AC33:HF33) -> 22 | HY33: =SUM(IFERROR(AC34:HF34-AC33:HF33-AC35:HF35,0)) -> 7.333333333 | IA33: =VLOOKUP($HY$17,'[1]производственный календарь '!$B$2:$F$13,2,0) -> 176 | IJ33: Хомченко Л.Е., контролёр-посадчик аттракциона Ч
AC34: 0.8333333333 | AI34: 0.8333333333 | AO34: 0.8333333333 | AU34: 0.8333333333 | BA34: 0.8333333333 | BG34: В | BM34: В | BS34: 0.8333333333 | BY34: 0.8333333333 | CE34: 0.8333333333 | CK34: 0.8333333333 | CQ34: 0.8333333333 | CW34: В | DC34: В | DI34: 0.8333333333 | DO34: 0.8333333333 | DU34: 0.8333333333 | EA34: 0.8333333333 | EG34: 0.8333333333 | EM34: В | ES34: В | EY34: 0.8333333333 | FE34: 0.8333333333 | FK34: 0.8333333333 | FQ34: 0.8333333333 | FW34: 0.8333333333 | GC34: В | GI34: В | GO34: 0.8333333333 | GU34: 0.8333333333 | IG34: В | IJ34: Чижова В.В., контролёр-посадчик аттракциона
X35: обед | Y35: обед | AC35: 03:00:00 | AI35: 03:00:00 | AO35: 03:00:00 | AU35: 03:00:00 | BA35: 0.125 | BG35: В | BM35: В | BS35: 03:00:00 | BY35: 03:00:00 | CE35: 03:00:00 | CK35: 03:00:00 | CQ35: 0.125 | CW35: В | DC35: В | DI35: 03:00:00 | DO35: 03:00:00 | DU35: 03:00:00 | EA35: 03:00:00 | EG35: 0.125 | EM35: В | ES35: В | EY35: 03:00:00 | FE35: 03:00:00 | FK35: 03:00:00 | FQ35: 03:00:00 | FW35: 0.125 | GC35: В | GI35: В | GO35: 03:00:00 | GU35: 03:00:00 | IG35: ОТ | IJ35: Середка С.Л., контролёр-посадчик аттракциона
Y36: р.д. | AC36: =IFERROR(AC34-AC33-AC35,0) -> 08:00:00 | AI36: =IFERROR(AI34-AI33-AI35,0) -> 08:00:00 | AO36: =IFERROR(AO34-AO33-AO35,0) -> 08:00:00 | AU36: =IFERROR(AU34-AU33-AU35,0) -> 08:00:00 | BA36: =IFERROR(BA34-BA33-BA35,0) -> 0.3333333333 | BG36: =IFERROR(BG34-BG33-BG35,0) -> 0 | BM36: =IFERROR(BM34-BM33-BM35,0) -> 00:00:00 | BS36: =IFERROR(BS34-BS33-BS35,0) -> 08:00:00 | BY36: =IFERROR(BY34-BY33-BY35,0) -> 08:00:00 | CE36: =IFERROR(CE34-CE33-CE35,0) -> 08:00:00 | CK36: =IFERROR(CK34-CK33-CK35,0) -> 08:00:00 | CQ36: =IFERROR(CQ34-CQ33-CQ35,0) -> 0.3333333333 | CW36: =IFERROR(CW34-CW33-CW35,0) -> 0 | DC36: =IFERROR(DC34-DC33-DC35,0) -> 00:00:00 | DI36: =IFERROR(DI34-DI33-DI35,0) -> 08:00:00 | DO36: =IFERROR(DO34-DO33-DO35,0) -> 08:00:00 | DU36: =IFERROR(DU34-DU33-DU35,0) -> 08:00:00 | EA36: =IFERROR(EA34-EA33-EA35,0) -> 08:00:00 | EG36: =IFERROR(EG34-EG33-EG35,0) -> 0.3333333333 | EM36: =IFERROR(EM34-EM33-EM35,0) -> 0 | ES36: =IFERROR(ES34-ES33-ES35,0) -> 00:00:00 | EY36: =IFERROR(EY34-EY33-EY35,0) -> 08:00:00 | FE36: =IFERROR(FE34-FE33-FE35,0) -> 08:00:00 | FK36: =IFERROR(FK34-FK33-FK35,0) -> 08:00:00 | FQ36: =IFERROR(FQ34-FQ33-FQ35,0) -> 08:00:00 | FW36: =IFERROR(FW34-FW33-FW35,0) -> 0.3333333333 | GC36: =IFERROR(GC34-GC33-GC35,0) -> 0 | GI36: =IFERROR(GI34-GI33-GI35,0) -> 00:00:00 | GO36: =IFERROR(GO34-GO33-GO35,0) -> 08:00:00 | GU36: =IFERROR(GU34-GU33-GU35,0) -> 08:00:00 | HA36: =IFERROR(HA34-HA33-HA35,0) -> 00:00:00 | HY36: =SUM(AC36:HF36) -> 7.333333333
X37: пр | Y37: пр | HG37: =SUM(AC37:HF37) -> 00:00:00
Y38: от | HG38: =COUNTIF(AC39:HF39,"=От") -> 0
A39: 3 | F39: Лагутенко В.А., кассир билетный НЧ | X39: 1 | AC39: 0.3333333333 | AO39: 0.375 | BA39: 0.3333333333 | BM39: 0.375 | BY39: 0.375 | CK39: 0.375 | CW39: 0.3333333333 | DI39: 0.3333333333 | DU39: 0.3333333333 | EG39: 0.3333333333 | ES39: 0.3333333333 | FE39: 0.3333333333 | FQ39: 0.3333333333 | GC39: 0.3333333333 | GO39: 0.3333333333 | HG39: =COUNT(AC39:HF39) -> 15 | HY39: =SUM(IFERROR(AC40:HF40-AC39:HF39-AC41:HF41,0)) -> 7.333333333 | IA39: =VLOOKUP($HY$17,'[1]производственный календарь '!$B$2:$F$13,2,0) -> 176
AC40: 0.875 | AO40: 0.875 | BA40: 0.875 | BM40: 0.875 | BY40: 0.875 | CK40: 0.875 | CW40: 0.875 | DI40: 0.875 | DU40: 0.875 | EG40: 0.875 | ES40: 0.875 | FE40: 0.875 | FQ40: 0.875 | GC40: 0.875 | GO40: 0.875
X41: обед | Y41: обед | AC41: 01:00:00 | AO41: 01:00:00 | BA41: 01:00:00 | BM41: 01:00:00 | BY41: 01:00:00 | CK41: 01:00:00 | CW41: 01:00:00 | DI41: 01:00:00 | DU41: 01:00:00 | EG41: 01:00:00 | ES41: 01:00:00 | FE41: 01:00:00 | FQ41: 01:00:00 | GC41: 01:00:00 | GO41: 01:00:00
Y42: р.д. | AC42: =IFERROR(AC40-AC39-AC41,0) -> 12:00:00 | AI42: =IFERROR(AI40-AI39-AI41,0) -> 00:00:00 | AO42: =IFERROR(AO40-AO39-AO41,0) -> 11:00:00 | AU42: =IFERROR(AU40-AU39-AU41,0) -> 0 | BA42: =IFERROR(BA40-BA39-BA41,0) -> 0.5 | BG42: =IFERROR(BG40-BG39-BG41,0) -> 0 | BM42: =IFERROR(BM40-BM39-BM41,0) -> 11:00:00 | BS42: =IFERROR(BS40-BS39-BS41,0) -> 00:00:00 | BY42: =IFERROR(BY40-BY39-BY41,0) -> 11:00:00 | CE42: =IFERROR(CE40-CE39-CE41,0) -> 00:00:00 | CK42: =IFERROR(CK40-CK39-CK41,0) -> 0.4583333333 | CQ42: =IFERROR(CQ40-CQ39-CQ41,0) -> 0 | CW42: =IFERROR(CW40-CW39-CW41,0) -> 0.5 | DC42: =IFERROR(DC40-DC39-DC41,0) -> 00:00:00 | DI42: =IFERROR(DI40-DI39-DI41,0) -> 12:00:00 | DO42: =IFERROR(DO40-DO39-DO41,0) -> 00:00:00 | DU42: =IFERROR(DU40-DU39-DU41,0) -> 12:00:00 | EA42: =IFERROR(EA40-EA39-EA41,0) -> 0 | EG42: =IFERROR(EG40-EG39-EG41,0) -> 0.5 | EM42: =IFERROR(EM40-EM39-EM41,0) -> 0 | ES42: =IFERROR(ES40-ES39-ES41,0) -> 12:00:00 | EY42: =IFERROR(EY40-EY39-EY41,0) -> 00:00:00 | FE42: =IFERROR(FE40-FE39-FE41,0) -> 12:00:00 | FK42: =IFERROR(FK40-FK39-FK41,0) -> 00:00:00 | FQ42: =IFERROR(FQ40-FQ39-FQ41,0) -> 0.5 | FW42: =IFERROR(FW40-FW39-FW41,0) -> 0 | GC42: =IFERROR(GC40-GC39-GC41,0) -> 0.5 | GI42: =IFERROR(GI40-GI39-GI41,0) -> 00:00:00 | GO42: =IFERROR(GO40-GO39-GO41,0) -> 12:00:00 | GU42: =IFERROR(GU40-GU39-GU41,0) -> 00:00:00 | HA42: =IFERROR(HA40-HA39-HA41,0) -> 00:00:00 | HY42: =SUM(AC42:HF42) -> 7.333333333
X43: пр | Y43: пр | HG43: =SUM(AC43:HF43) -> 00:00:00
Y44: от | HG44: =COUNTIF(AC45:HF45,"=От") -> 0
A45: 4 | F45: Купцова Г.И., кассир билетный Ч | X45: 1 | AI45: 0.3333333333 | AU45: 0.375 | BG45: 0.3333333333 | BS45: 0.375 | CE45: 0.375 | CQ45: 0.3333333333 | DC45: 0.375 | DO45: 0.3333333333 | EA45: 0.3333333333 | EM45: 0.3333333333 | EY45: 0.3333333333 | FK45: 0.3333333333 | FW45: 0.3333333333 | GI45: 0.3333333333 | GU45: 0.3333333333 | HG45: =COUNT(AC45:HF45) -> 15 | HY45: =SUM(IFERROR(AC46:HF46-AC45:HF45-AC47:HF47,0)) -> 7.333333333 | IA45: =VLOOKUP($HY$17,'[1]производственный календарь '!$B$2:$F$13,2,0) -> 176
AI46: 0.875 | AU46: 0.875 | BG46: 0.875 | BS46: 0.875 | CE46: 0.875 | CQ46: 0.875 | DC46: 0.875 | DO46: 0.875 | EA46: 0.875 | EM46: 0.875 | EY46: 0.875 | FK46: 0.875 | FW46: 0.875 | GI46: 0.875 | GU46: 0.875
X47: обед | Y47: обед | AI47: 01:00:00 | AU47: 01:00:00 | BG47: 01:00:00 | BS47: 01:00:00 | CE47: 01:00:00 | CQ47: 01:00:00 | DC47: 01:00:00 | DO47: 01:00:00 | EA47: 01:00:00 | EM47: 01:00:00 | EY47: 01:00:00 | FK47: 01:00:00 | FW47: 01:00:00 | GI47: 01:00:00 | GU47: 01:00:00
Y48: р.д. | AC48: =IFERROR(AC46-AC45-AC47,0) -> 00:00:00 | AI48: =IFERROR(AI46-AI45-AI47,0) -> 12:00:00 | AO48: =IFERROR(AO46-AO45-AO47,0) -> 00:00:00 | AU48: =IFERROR(AU46-AU45-AU47,0) -> 0.4583333333 | BA48: =IFERROR(BA46-BA45-BA47,0) -> 0 | BG48: =IFERROR(BG46-BG45-BG47,0) -> 0.5 | BM48: =IFERROR(BM46-BM45-BM47,0) -> 00:00:00 | BS48: =IFERROR(BS46-BS45-BS47,0) -> 11:00:00 | BY48: =IFERROR(BY46-BY45-BY47,0) -> 00:00:00 | CE48: =IFERROR(CE46-CE45-CE47,0) -> 11:00:00 | CK48: =IFERROR(CK46-CK45-CK47,0) -> 0 | CQ48: =IFERROR(CQ46-CQ45-CQ47,0) -> 0.5 | CW48: =IFERROR(CW46-CW45-CW47,0) -> 0 | DC48: =IFERROR(DC46-DC45-DC47,0) -> 11:00:00 | DI48: =IFERROR(DI46-DI45-DI47,0) -> 00:00:00 | DO48: =IFERROR(DO46-DO45-DO47,0) -> 12:00:00 | DU48: =IFERROR(DU46-DU45-DU47,0) -> 00:00:00 | EA48: =IFERROR(EA46-EA45-EA47,0) -> 0.5 | EG48: =IFERROR(EG46-EG45-EG47,0) -> 0 | EM48: =IFERROR(EM46-EM45-EM47,0) -> 0.5 | ES48: =IFERROR(ES46-ES45-ES47,0) -> 00:00:00 | EY48: =IFERROR(EY46-EY45-EY47,0) -> 12:00:00 | FE48: =IFERROR(FE46-FE45-FE47,0) -> 00:00:00 | FK48: =IFERROR(FK46-FK45-FK47,0) -> 12:00:00 | FQ48: =IFERROR(FQ46-FQ45-FQ47,0) -> 0 | FW48: =IFERROR(FW46-FW45-FW47,0) -> 0.5 | GC48: =IFERROR(GC46-GC45-GC47,0) -> 0 | GI48: =IFERROR(GI46-GI45-GI47,0) -> 12:00:00 | GO48: =IFERROR(GO46-GO45-GO47,0) -> 00:00:00 | GU48: =IFERROR(GU46-GU45-GU47,0) -> 12:00:00 | HA48: =IFERROR(HA46-HA45-HA47,0) -> 00:00:00 | HY48: =SUM(AC48:GZ48) -> 7.333333333
X49: пр | Y49: пр | HG49: =SUM(AC49:HF49) -> 00:00:00 | HY49: =SUM(AG49:HQ50) -> 00:00:00
Y50: от | HG50: =COUNTIF(AC51:HF51,"=От") -> 0
A51: 5 | F51: Кипкаева Л.А., дворник | X51: 1 | AC51: 0.25 | AI51: 0.25 | AO51: 0.25 | AU51: В | BA51: 0.25 | BG51: 0.25 | BM51: 0.25 | BS51: 0.25 | BY51: 0.25 | CE51: 0.25 | CK51: В | CQ51: 0.25 | CW51: 0.25 | DC51: 0.25 | DI51: 0.25 | DO51: 0.25 | DU51: 0.25 | EA51: В | EG51: 0.25 | EM51: 0.25 | ES51: 0.25 | EY51: 0.25 | FE51: 0.25 | FK51: 0.25 | FQ51: В | FW51: 0.25 | GC51: 0.25 | GI51: 0.25 | GO51: 0.25 | GU51: 0.25 | HG51: =COUNT(AC51:HF51) -> 26 | HY51: =SUM(IFERROR(AC52:HF52-AC51:HF51-AC53:HF53,0)) -> 7.333333333 | IA51: =VLOOKUP($HY$17,'[1]производственный календарь '!$B$2:$F$13,2,0) -> 176
AC52: 0.5833333333 | AI52: 0.5833333333 | AO52: 0.5 | AU52: В | BA52: 0.5833333333 | BG52: 0.5833333333 | BM52: 0.5833333333 | BS52: 0.5833333333 | BY52: 0.5833333333 | CE52: 0.5 | CK52: В | CQ52: 0.5833333333 | CW52: 0.5833333333 | DC52: 0.5833333333 | DI52: 0.5833333333 | DO52: 0.5833333333 | DU52: 0.5 | EA52: В | EG52: 0.5833333333 | EM52: 0.5833333333 | ES52: 0.5833333333 | EY52: 0.5833333333 | FE52: 0.5833333333 | FK52: 0.5 | FQ52: В | FW52: 0.5833333333 | GC52: 0.5833333333 | GI52: 0.5833333333 | GO52: 0.625 | GU52: 0.625
X53: обед | Y53: обед | AC53: 01:00:00 | AI53: 01:00:00 | AO53: 01:00:00 | AU53: В | BA53: 01:00:00 | BG53: 01:00:00 | BM53: 01:00:00 | BS53: 01:00:00 | BY53: 01:00:00 | CE53: 01:00:00 | CK53: В | CQ53: 01:00:00 | CW53: 01:00:00 | DC53: 01:00:00 | DI53: 01:00:00 | DO53: 01:00:00 | DU53: 01:00:00 | EA53: В | EG53: 01:00:00 | EM53: 01:00:00 | ES53: 01:00:00 | EY53: 01:00:00 | FE53: 01:00:00 | FK53: 01:00:00 | FQ53: В | FW53: 01:00:00 | GC53: 01:00:00 | GI53: 01:00:00 | GO53: 01:00:00 | GU53: 01:00:00
Y54: р.д. | AC54: =IFERROR(AC52-AC51-AC53,0) -> 07:00:00 | AI54: =IFERROR(AI52-AI51-AI53,0) -> 07:00:00 | AO54: =IFERROR(AO52-AO51-AO53,0) -> 05:00:00 | AU54: =IFERROR(AU52-AU51-AU53,0) -> 0 | BA54: =IFERROR(BA52-BA51-BA53,0) -> 0.2916666667 | BG54: =IFERROR(BG52-BG51-BG53,0) -> 0.2916666667 | BM54: =IFERROR(BM52-BM51-BM53,0) -> 07:00:00 | BS54: =IFERROR(BS52-BS51-BS53,0) -> 07:00:00 | BY54: =IFERROR(BY52-BY51-BY53,0) -> 07:00:00 | CE54: =IFERROR(CE52-CE51-CE53,0) -> 05:00:00 | CK54: =IFERROR(CK52-CK51-CK53,0) -> 0 | CQ54: =IFERROR(CQ52-CQ51-CQ53,0) -> 0.2916666667 | CW54: =IFERROR(CW52-CW51-CW53,0) -> 07:00:00 | DC54: =IFERROR(DC52-DC51-DC53,0) -> 07:00:00 | DI54: =IFERROR(DI52-DI51-DI53,0) -> 07:00:00 | DO54: =IFERROR(DO52-DO51-DO53,0) -> 07:00:00 | DU54: =IFERROR(DU52-DU51-DU53,0) -> 05:00:00 | EA54: =IFERROR(EA52-EA51-EA53,0) -> 0 | EG54: =IFERROR(EG52-EG51-EG53,0) -> 0.2916666667 | EM54: =IFERROR(EM52-EM51-EM53,0) -> 07:00:00 | ES54: =IFERROR(ES52-ES51-ES53,0) -> 07:00:00 | EY54: =IFERROR(EY52-EY51-EY53,0) -> 07:00:00 | FE54: =IFERROR(FE52-FE51-FE53,0) -> 07:00:00 | FK54: =IFERROR(FK52-FK51-FK53,0) -> 05:00:00 | FQ54: =IFERROR(FQ52-FQ51-FQ53,0) -> 0 | FW54: =IFERROR(FW52-FW51-FW53,0) -> 0.2916666667 | GC54: =IFERROR(GC52-GC51-GC53,0) -> 07:00:00 | GI54: =IFERROR(GI52-GI51-GI53,0) -> 07:00:00 | GO54: =IFERROR(GO52-GO51-GO53,0) -> 08:00:00 | GU54: =IFERROR(GU52-GU51-GU53,0) -> 08:00:00 | HA54: =IFERROR(HA52-HA51-HA53,0) -> 00:00:00 | HY54: =SUM(AC54:GZ54) -> 7.333333333
X55: пр | Y55: пр | HG55: =SUM(AC55:HF55) -> 00:00:00
Y56: от | HG56: =COUNTIF(AC57:HF57,"=От") -> 0
A57: 6 | F57: Морозова Г.Н., контролёр-посадчик аттракциона НЧ | X57: 1 | AC57: 0.3333333333 | AO57: 0.375 | BA57: 0.3333333333 | BM57: 0.375 | BY57: 0.375 | CK57: 0.375 | CW57: 0.3333333333 | DI57: 0.3333333333 | DU57: 0.3333333333 | EG57: 0.3333333333 | ES57: 0.3333333333 | FE57: 0.3333333333 | FQ57: 0.3333333333 | GC57: 0.3333333333 | GO57: 0.3333333333 | HG57: =COUNT(AC57:HF57) -> 15 | HY57: =SUM(IFERROR(AC58:HF58-AC57:HF57-AC59:HF59,0)) -> 7.333333333 | IA57: =VLOOKUP($HY$17,'[1]производственный календарь '!$B$2:$F$13,2,0) -> 176
AC58: 0.875 | AO58: 0.875 | BA58: 0.875 | BM58: 0.875 | BY58: 0.875 | CK58: 0.875 | CW58: 0.875 | DI58: 0.875 | DU58: 0.875 | EG58: 0.875 | ES58: 0.875 | FE58: 0.875 | FQ58: 0.875 | GC58: 0.875 | GO58: 0.875
X59: обед | Y59: обед | AC59: 01:00:00 | AO59: 01:00:00 | BA59: 01:00:00 | BM59: 01:00:00 | BY59: 01:00:00 | CK59: 01:00:00 | CW59: 01:00:00 | DI59: 01:00:00 | DU59: 01:00:00 | EG59: 01:00:00 | ES59: 01:00:00 | FE59: 01:00:00 | FQ59: 01:00:00 | GC59: 01:00:00 | GO59: 01:00:00
Y60: р.д. | AC60: =IFERROR(AC58-AC57-AC59,0) -> 12:00:00 | AI60: =IFERROR(AI58-AI57-AI59,0) -> 00:00:00 | AO60: =IFERROR(AO58-AO57-AO59,0) -> 11:00:00 | AU60: =IFERROR(AU58-AU57-AU59,0) -> 00:00:00 | BA60: =IFERROR(BA58-BA57-BA59,0) -> 0.5 | BG60: =IFERROR(BG58-BG57-BG59,0) -> 0 | BM60: =IFERROR(BM58-BM57-BM59,0) -> 11:00:00 | BS60: =IFERROR(BS58-BS57-BS59,0) -> 00:00:00 | BY60: =IFERROR(BY58-BY57-BY59,0) -> 11:00:00 | CE60: =IFERROR(CE58-CE57-CE59,0) -> 00:00:00 | CK60: =IFERROR(CK58-CK57-CK59,0) -> 11:00:00 | CQ60: =IFERROR(CQ58-CQ57-CQ59,0) -> 0 | CW60: =IFERROR(CW58-CW57-CW59,0) -> 0.5 | DC60: =IFERROR(DC58-DC57-DC59,0) -> 00:00:00 | DI60: =IFERROR(DI58-DI57-DI59,0) -> 12:00:00 | DO60: =IFERROR(DO58-DO57-DO59,0) -> 00:00:00 | DU60: =IFERROR(DU58-DU57-DU59,0) -> 12:00:00 | EA60: =IFERROR(EA58-EA57-EA59,0) -> 00:00:00 | EG60: =IFERROR(EG58-EG57-EG59,0) -> 0.5 | EM60: =IFERROR(EM58-EM57-EM59,0) -> 0 | ES60: =IFERROR(ES58-ES57-ES59,0) -> 12:00:00 | EY60: =IFERROR(EY58-EY57-EY59,0) -> 00:00:00 | FE60: =IFERROR(FE58-FE57-FE59,0) -> 12:00:00 | FK60: =IFERROR(FK58-FK57-FK59,0) -> 00:00:00 | FQ60: =IFERROR(FQ58-FQ57-FQ59,0) -> 12:00:00 | FW60: =IFERROR(FW58-FW57-FW59,0) -> 0 | GC60: =IFERROR(GC58-GC57-GC59,0) -> 0.5 | GI60: =IFERROR(GI58-GI57-GI59,0) -> 00:00:00 | GO60: =IFERROR(GO58-GO57-GO59,0) -> 12:00:00 | GU60: =IFERROR(GU58-GU57-GU59,0) -> 00:00:00 | HA60: =IFERROR(HA58-HA57-HA59,0) -> 00:00:00 | HY60: =SUM(AC60:HF60) -> 7.333333333
X61: пр | Y61: пр | HG61: =SUM(AC61:HF61) -> 00:00:00
Y62: от | HG62: =COUNTIF(AC63:HF63,"=От") -> 0
A63: 7 | F63: Нурлиева Е.А., котролёр-посадчик аттракциона Ч | X63: 1 | AI63: 0.3333333333 | AU63: 0.375 | BG63: 0.3333333333 | BS63: 0.375 | CE63: 0.375 | CQ63: 0.3333333333 | DC63: 0.375 | DO63: 0.3333333333 | EA63: 0.3333333333 | EM63: 0.3333333333 | EY63: 0.3333333333 | FK63: 0.3333333333 | FW63: 0.3333333333 | GI63: 0.3333333333 | GU63: 0.3333333333 | HG63: =COUNT(AC63:HF63) -> 15 | HY63: =SUM(IFERROR(AC64:HF64-AC63:HF63-AC65:HF65,0)) -> 7.333333333 | IA63: =VLOOKUP($HY$17,'[1]производственный календарь '!$B$2:$F$13,2,0) -> 176
AI64: 0.875 | AU64: 0.875 | BG64: 0.875 | BS64: 0.875 | CE64: 0.875 | CQ64: 0.875 | DC64: 0.875 | DO64: 0.875 | EA64: 0.875 | EM64: 0.875 | EY64: 0.875 | FK64: 0.875 | FW64: 0.875 | GI64: 0.875 | GU64: 0.875
X65: обед | Y65: обед | AI65: 01:00:00 | AU65: 01:00:00 | BG65: 01:00:00 | BS65: 01:00:00 | CE65: 01:00:00 | CQ65: 01:00:00 | DC65: 01:00:00 | DO65: 01:00:00 | EA65: 01:00:00 | EM65: 01:00:00 | EY65: 01:00:00 | FK65: 01:00:00 | FW65: 01:00:00 | GI65: 01:00:00 | GU65: 01:00:00
Y66: р.д. | AC66: =IFERROR(AC64-AC63-AC65,0) -> 00:00:00 | AI66: =IFERROR(AI64-AI63-AI65,0) -> 12:00:00 | AO66: =IFERROR(AO64-AO63-AO65,0) -> 00:00:00 | AU66: =IFERROR(AU64-AU63-AU65,0) -> 11:00:00 | BA66: =IFERROR(BA64-BA63-BA65,0) -> 0 | BG66: =IFERROR(BG64-BG63-BG65,0) -> 0.5 | BM66: =IFERROR(BM64-BM63-BM65,0) -> 00:00:00 | BS66: =IFERROR(BS64-BS63-BS65,0) -> 11:00:00 | BY66: =IFERROR(BY64-BY63-BY65,0) -> 00:00:00 | CE66: =IFERROR(CE64-CE63-CE65,0) -> 11:00:00 | CK66: =IFERROR(CK64-CK63-CK65,0) -> 00:00:00 | CQ66: =IFERROR(CQ64-CQ63-CQ65,0) -> 0.5 | CW66: =IFERROR(CW64-CW63-CW65,0) -> 0 | DC66: =IFERROR(DC64-DC63-DC65,0) -> 11:00:00 | DI66: =IFERROR(DI64-DI63-DI65,0) -> 00:00:00 | DO66: =IFERROR(DO64-DO63-DO65,0) -> 12:00:00 | DU66: =IFERROR(DU64-DU63-DU65,0) -> 00:00:00 | EA66: =IFERROR(EA64-EA63-EA65,0) -> 12:00:00 | EG66: =IFERROR(EG64-EG63-EG65,0) -> 0 | EM66: =IFERROR(EM64-EM63-EM65,0) -> 0.5 | ES66: =IFERROR(ES64-ES63-ES65,0) -> 00:00:00 | EY66: =IFERROR(EY64-EY63-EY65,0) -> 12:00:00 | FE66: =IFERROR(FE64-FE63-FE65,0) -> 00:00:00 | FK66: =IFERROR(FK64-FK63-FK65,0) -> 12:00:00 | FQ66: =IFERROR(FQ64-FQ63-FQ65,0) -> 00:00:00 | FW66: =IFERROR(FW64-FW63-FW65,0) -> 0.5 | GC66: =IFERROR(GC64-GC63-GC65,0) -> 0 | GI66: =IFERROR(GI64-GI63-GI65,0) -> 12:00:00 | GO66: =IFERROR(GO64-GO63-GO65,0) -> 00:00:00 | GU66: =IFERROR(GU64-GU63-GU65,0) -> 12:00:00 | HA66: =IFERROR(HA64-HA63-HA65,0) -> 00:00:00 | HY66: =SUM(AC66:GZ66) -> 7.333333333
X67: пр | Y67: пр | HG67: =SUM(AC67:HF67) -> 00:00:00
Y68: от | HG68: =COUNTIF(AC69:HF69,"=От") -> 0
A69: 8 | F69: Хомченко Л.Е., контролёр-посадчик аттракциона НЧ | X69: 1 | AC69: 0.3333333333 | AO69: 0.375 | BA69: 0.3333333333 | BM69: 0.375 | BY69: 0.375 | CK69: 0.375 | CW69: 0.3333333333 | DI69: 0.3333333333 | DU69: 0.3333333333 | EG69: 0.3333333333 | ES69: 0.3333333333 | FE69: 0.3333333333 | FQ69: 0.3333333333 | GC69: 0.3333333333 | GO69: 0.3333333333 | HG69: =COUNT(AC69:HF69) -> 15 | HY69: =SUM(IFERROR(AC70:HF70-AC69:HF69-AC71:HF71,0)) -> 7.333333333 | IA69: =VLOOKUP($HY$17,'[1]производственный календарь '!$B$2:$F$13,2,0) -> 176
AC70: 0.875 | AO70: 0.875 | BA70: 0.875 | BM70: 0.875 | BY70: 0.875 | CK70: 0.875 | CW70: 0.875 | DI70: 0.875 | DU70: 0.875 | EG70: 0.875 | ES70: 0.875 | FE70: 0.875 | FQ70: 0.875 | GC70: 0.875 | GO70: 0.875
X71: обед | Y71: обед | AC71: 01:00:00 | AO71: 01:00:00 | BA71: 01:00:00 | BM71: 01:00:00 | BY71: 01:00:00 | CK71: 01:00:00 | CW71: 01:00:00 | DI71: 01:00:00 | DU71: 01:00:00 | EG71: 01:00:00 | ES71: 01:00:00 | FE71: 01:00:00 | FQ71: 01:00:00 | GC71: 01:00:00 | GO71: 01:00:00
Y72: р.д. | AC72: =IFERROR(AC70-AC69-AC71,0) -> 12:00:00 | AI72: =IFERROR(AI70-AI69-AI71,0) -> 00:00:00 | AO72: =IFERROR(AO70-AO69-AO71,0) -> 11:00:00 | AU72: =IFERROR(AU70-AU69-AU71,0) -> 00:00:00 | BA72: =IFERROR(BA70-BA69-BA71,0) -> 0.5 | BG72: =IFERROR(BG70-BG69-BG71,0) -> 0 | BM72: =IFERROR(BM70-BM69-BM71,0) -> 11:00:00 | BS72: =IFERROR(BS70-BS69-BS71,0) -> 00:00:00 | BY72: =IFERROR(BY70-BY69-BY71,0) -> 11:00:00 | CE72: =IFERROR(CE70-CE69-CE71,0) -> 00:00:00 | CK72: =IFERROR(CK70-CK69-CK71,0) -> 11:00:00 | CQ72: =IFERROR(CQ70-CQ69-CQ71,0) -> 0 | CW72: =IFERROR(CW70-CW69-CW71,0) -> 0.5 | DC72: =IFERROR(DC70-DC69-DC71,0) -> 00:00:00 | DI72: =IFERROR(DI70-DI69-DI71,0) -> 12:00:00 | DO72: =IFERROR(DO70-DO69-DO71,0) -> 00:00:00 | DU72: =IFERROR(DU70-DU69-DU71,0) -> 12:00:00 | EA72: =IFERROR(EA70-EA69-EA71,0) -> 00:00:00 | EG72: =IFERROR(EG70-EG69-EG71,0) -> 0.5 | EM72: =IFERROR(EM70-EM69-EM71,0) -> 0 | ES72: =IFERROR(ES70-ES69-ES71,0) -> 12:00:00 | EY72: =IFERROR(EY70-EY69-EY71,0) -> 00:00:00 | FE72: =IFERROR(FE70-FE69-FE71,0) -> 12:00:00 | FK72: =IFERROR(FK70-FK69-FK71,0) -> 00:00:00 | FQ72: =IFERROR(FQ70-FQ69-FQ71,0) -> 12:00:00 | FW72: =IFERROR(FW70-FW69-FW71,0) -> 0 | GC72: =IFERROR(GC70-GC69-GC71,0) -> 0.5 | GI72: =IFERROR(GI70-GI69-GI71,0) -> 00:00:00 | GO72: =IFERROR(GO70-GO69-GO71,0) -> 12:00:00 | GU72: =IFERROR(GU70-GU69-GU71,0) -> 00:00:00 | HA72: =IFERROR(HA70-HA69-HA71,0) -> 00:00:00 | HY72: =SUM(AC72:HF72) -> 7.333333333
X73: пр | Y73: пр | HG73: =SUM(AC73:HF73) -> 00:00:00
Y74: от | HG74: =COUNTIF(AC87:HF87,"=От") -> 0
F75: Чижова В.В., контролёр-посадчик аттракциона | Y75: 0.5 | HG75: =COUNT(AC75:HF75) -> 0 | HY75: =SUM(IFERROR(AC76:HF76-AC75:HF75-AC77:HF77,0)) -> 0
Y77: обед
Y78: р.д. | AC78: =IFERROR(AC76-AC75-AC77,0) -> 00:00:00 | AI78: =IFERROR(AI76-AI75-AI77,0) -> 00:00:00 | AO78: =IFERROR(AO76-AO75-AO77,0) -> 00:00:00 | AU78: =IFERROR(AU76-AU75-AU77,0) -> 00:00:00 | BA78: =IFERROR(BA76-BA75-BA77,0) -> 0 | BG78: =IFERROR(BG76-BG75-BG77,0) -> 0 | BM78: =IFERROR(BM76-BM75-BM77,0) -> 00:00:00 | BS78: =IFERROR(BS76-BS75-BS77,0) -> 00:00:00 | BY78: =IFERROR(BY76-BY75-BY77,0) -> 00:00:00 | CE78: =IFERROR(CE76-CE75-CE77,0) -> 00:00:00 | CK78: =IFERROR(CK76-CK75-CK77,0) -> 00:00:00 | CQ78: =IFERROR(CQ76-CQ75-CQ77,0) -> 0 | CW78: =IFERROR(CW76-CW75-CW77,0) -> 0 | DC78: =IFERROR(DC76-DC75-DC77,0) -> 00:00:00 | DI78: =IFERROR(DI76-DI75-DI77,0) -> 00:00:00 | DO78: =IFERROR(DO76-DO75-DO77,0) -> 00:00:00 | DU78: =IFERROR(DU76-DU75-DU77,0) -> 00:00:00 | EA78: =IFERROR(EA76-EA75-EA77,0) -> 00:00:00 | EG78: =IFERROR(EG76-EG75-EG77,0) -> 0 | EM78: =IFERROR(EM76-EM75-EM77,0) -> 0 | ES78: =IFERROR(ES76-ES75-ES77,0) -> 00:00:00 | EY78: =IFERROR(EY76-EY75-EY77,0) -> 00:00:00 | FE78: =IFERROR(FE76-FE75-FE77,0) -> 00:00:00 | FK78: =IFERROR(FK76-FK75-FK77,0) -> 00:00:00 | FQ78: =IFERROR(FQ76-FQ75-FQ77,0) -> 00:00:00 | FW78: =IFERROR(FW76-FW75-FW77,0) -> 0 | GC78: =IFERROR(GC76-GC75-GC77,0) -> 0 | GI78: =IFERROR(GI76-GI75-GI77,0) -> 00:00:00 | GO78: =IFERROR(GO76-GO75-GO77,0) -> 00:00:00 | GU78: =IFERROR(GU76-GU75-GU77,0) -> 00:00:00 | HA78: 00:00:00 | HY78: =SUM(AC78:HF78) -> 0
Y79: пр
Y80: от
F81: Середка С.Л., контролёр-посадчик аттракциона | Y81: 0.5 | HG81: =COUNT(AC81:HF81) -> 0
HY82: =SUM(IFERROR(AC83:HF83-AC82:HF82-AC84:HF84,0)) -> 0
Y83: обед
Y84: р.д. | AC84: =IFERROR(AC82-AC81-AC83,0) -> 00:00:00 | AI84: =IFERROR(AI82-AI81-AI83,0) -> 00:00:00 | AO84: =IFERROR(AO82-AO81-AO83,0) -> 00:00:00 | AU84: =IFERROR(AU82-AU81-AU83,0) -> 00:00:00 | BA84: =IFERROR(BA82-BA81-BA83,0) -> 0 | BG84: =IFERROR(BG82-BG81-BG83,0) -> 0 | BM84: =IFERROR(BM82-BM81-BM83,0) -> 00:00:00 | BS84: =IFERROR(BS82-BS81-BS83,0) -> 00:00:00 | BY84: =IFERROR(BY82-BY81-BY83,0) -> 00:00:00 | CE84: =IFERROR(CE82-CE81-CE83,0) -> 00:00:00 | CK84: =IFERROR(CK82-CK81-CK83,0) -> 00:00:00 | CQ84: =IFERROR(CQ82-CQ81-CQ83,0) -> 0 | CW84: =IFERROR(CW82-CW81-CW83,0) -> 0 | DC84: =IFERROR(DC82-DC81-DC83,0) -> 00:00:00 | DI84: =IFERROR(DI82-DI81-DI83,0) -> 00:00:00 | DO84: =IFERROR(DO82-DO81-DO83,0) -> 00:00:00 | DU84: =IFERROR(DU82-DU81-DU83,0) -> 00:00:00 | EA84: =IFERROR(EA82-EA81-EA83,0) -> 00:00:00 | EG84: =IFERROR(EG82-EG81-EG83,0) -> 0 | EM84: =IFERROR(EM82-EM81-EM83,0) -> 0 | ES84: =IFERROR(ES82-ES81-ES83,0) -> 00:00:00 | EY84: =IFERROR(EY82-EY81-EY83,0) -> 00:00:00 | FE84: =IFERROR(FE82-FE81-FE83,0) -> 00:00:00 | FK84: =IFERROR(FK82-FK81-FK83,0) -> 00:00:00 | FQ84: =IFERROR(FQ82-FQ81-FQ83,0) -> 00:00:00 | FW84: =IFERROR(FW82-FW81-FW83,0) -> 0 | GC84: =IFERROR(GC82-GC81-GC83,0) -> 0 | GI84: =IFERROR(GI82-GI81-GI83,0) -> 00:00:00 | GO84: =IFERROR(GO82-GO81-GO83,0) -> 00:00:00 | GU84: =IFERROR(GU82-GU81-GU83,0) -> 00:00:00 | HA84: =IFERROR(HA82-HA81-HA83,0) -> 00:00:00
Y85: пр
Y86: от
A87: 9 | F87: Кондратюк Н.В., сторож | X87: 1 | AC87: 0.6666666667 | AI87: 0 | AU87: 0.6666666667 | BA87: 0 | BM87: 0.6666666667 | BS87: 0 | CE87: 0.6666666667 | CK87: 0 | CW87: 0.625 | DC87: 0 | DO87: 0.625 | DU87: 0 | EG87: 0.625 | EM87: 0 | EY87: 0.625 | FE87: 0 | FQ87: 0.625 | FW87: 0 | GI87: 0.625 | GO87: 0 | HG87: =COUNT(AC87:HF87) -> 20 | HY87: =SUM(IF(ISNUMBER(AC87:HF87),AC88:HF88-AC87:HF87+(AC88:HF88<AC87:HF87),))*24 -> 176 | IA87: =VLOOKUP($HY$17,'[1]производственный календарь '!$B$2:$F$13,2,0) -> 176
AC88: 1 | AI88: 0.375 | AU88: 1 | BA88: 0.375 | BM88: 1 | BS88: 0.375 | CE88: 1 | CK88: 0.375 | CW88: 1 | DC88: 0.375 | DO88: 1 | DU88: 0.375 | EG88: 1 | EM88: 0.375 | EY88: 1 | FE88: 0.375 | FQ88: 1 | FW88: 0.375 | GI88: 1 | GO88: 0.375
AC89: =IFERROR(AC88-AC87,0) -> 0.3333333333 | AI89: =IFERROR(AI88-AI87,0) -> 0.375 | AO89: =IFERROR(AO88-AO87,0) -> 0 | AU89: =IFERROR(AU88-AU87,0) -> 0.3333333333 | BA89: =IFERROR(BA88-BA87,0) -> 0.375 | BG89: =IFERROR(BG88-BG87,0) -> 0 | BM89: =IFERROR(BM88-BM87,0) -> 0.3333333333 | BS89: =IFERROR(BS88-BS87,0) -> 0.375 | BY89: =IFERROR(BY88-BY87,0) -> 0 | CE89: =IFERROR(CE88-CE87,0) -> 0.3333333333 | CK89: =IFERROR(CK88-CK87,0) -> 0.375 | CQ89: =IFERROR(CQ88-CQ87,0) -> 0 | CW89: =IFERROR(CW88-CW87,0) -> 0.375 | DC89: =IFERROR(DC88-DC87,0) -> 0.375 | DI89: =IFERROR(DI88-DI87,0) -> 0 | DO89: =IFERROR(DO88-DO87,0) -> 0.375 | DU89: =IFERROR(DU88-DU87,0) -> 0.375 | EA89: =IFERROR(EA88-EA87,0) -> 0 | EG89: =IFERROR(EG88-EG87,0) -> 0.375 | EM89: =IFERROR(EM88-EM87,0) -> 0.375 | ES89: =IFERROR(ES88-ES87,0) -> 0 | EY89: =IFERROR(EY88-EY87,0) -> 0.375 | FE89: =IFERROR(FE88-FE87,0) -> 0.375 | FK89: =IFERROR(FK88-FK87,0) -> 0 | FQ89: =IFERROR(FQ88-FQ87,0) -> 0.375 | FW89: =IFERROR(FW88-FW87,0) -> 0.375 | GC89: =IFERROR(GC88-GC87,0) -> 0 | GI89: =IFERROR(GI88-GI87,0) -> 0.375 | GO89: =IFERROR(GO88-GO87,0) -> 0.375 | GU89: =IFERROR(GU88-GU87,0) -> 0 | HY89: =SUM(AC89:HF89) -> 7.333333333
X91: НОЧЬ | AC91: =(MIN(AC88,6/24)-MIN(AC87,6/24)+MAX(AC88,22/24)-MAX(AC87,22/24))*24+(AC88<AC87)*8 -> 2 | AI91: =(MIN(AI88,6/24)-MIN(AI87,6/24)+MAX(AI88,22/24)-MAX(AI87,22/24))*24+(AI88<AI87)*8 -> 6 | AO91: =(MIN(AO88,6/24)-MIN(AO87,6/24)+MAX(AO88,22/24)-MAX(AO87,22/24))*24+(AO88<AO87)*8 -> 0 | AU91: =(MIN(AU88,6/24)-MIN(AU87,6/24)+MAX(AU88,22/24)-MAX(AU87,22/24))*24+(AU88<AU87)*8 -> 2 | BA91: =(MIN(BA88,6/24)-MIN(BA87,6/24)+MAX(BA88,22/24)-MAX(BA87,22/24))*24+(BA88<BA87)*8 -> 6 | BG91: =(MIN(BG88,6/24)-MIN(BG87,6/24)+MAX(BG88,22/24)-MAX(BG87,22/24))*24+(BG88<BG87)*8 -> 0 | BM91: =(MIN(BM88,6/24)-MIN(BM87,6/24)+MAX(BM88,22/24)-MAX(BM87,22/24))*24+(BM88<BM87)*8 -> 2 | BS91: =(MIN(BS88,6/24)-MIN(BS87,6/24)+MAX(BS88,22/24)-MAX(BS87,22/24))*24+(BS88<BS87)*8 -> 6 | BY91: =(MIN(BY88,6/24)-MIN(BY87,6/24)+MAX(BY88,22/24)-MAX(BY87,22/24))*24+(BY88<BY87)*8 -> 0 | CE91: =(MIN(CE88,6/24)-MIN(CE87,6/24)+MAX(CE88,22/24)-MAX(CE87,22/24))*24+(CE88<CE87)*8 -> 2 | CK91: =(MIN(CK88,6/24)-MIN(CK87,6/24)+MAX(CK88,22/24)-MAX(CK87,22/24))*24+(CK88<CK87)*8 -> 6 | CQ91: =(MIN(CQ88,6/24)-MIN(CQ87,6/24)+MAX(CQ88,22/24)-MAX(CQ87,22/24))*24+(CQ88<CQ87)*8 -> 0 | CW91: =(MIN(CW88,6/24)-MIN(CW87,6/24)+MAX(CW88,22/24)-MAX(CW87,22/24))*24+(CW88<CW87)*8 -> 2 | DC91: =(MIN(DC88,6/24)-MIN(DC87,6/24)+MAX(DC88,22/24)-MAX(DC87,22/24))*24+(DC88<DC87)*8 -> 6 | DI91: =(MIN(DI88,6/24)-MIN(DI87,6/24)+MAX(DI88,22/24)-MAX(DI87,22/24))*24+(DI88<DI87)*8 -> 0 | DO91: =(MIN(DO88,6/24)-MIN(DO87,6/24)+MAX(DO88,22/24)-MAX(DO87,22/24))*24+(DO88<DO87)*8 -> 2 | DU91: =(MIN(DU88,6/24)-MIN(DU87,6/24)+MAX(DU88,22/24)-MAX(DU87,22/24))*24+(DU88<DU87)*8 -> 6 | EA91: =(MIN(EA88,6/24)-MIN(EA87,6/24)+MAX(EA88,22/24)-MAX(EA87,22/24))*24+(EA88<EA87)*8 -> 0 | EG91: =(MIN(EG88,6/24)-MIN(EG87,6/24)+MAX(EG88,22/24)-MAX(EG87,22/24))*24+(EG88<EG87)*8 -> 2 | EM91: =(MIN(EM88,6/24)-MIN(EM87,6/24)+MAX(EM88,22/24)-MAX(EM87,22/24))*24+(EM88<EM87)*8 -> 6 | ES91: =(MIN(ES88,6/24)-MIN(ES87,6/24)+MAX(ES88,22/24)-MAX(ES87,22/24))*24+(ES88<ES87)*8 -> 0 | EY91: =(MIN(EY88,6/24)-MIN(EY87,6/24)+MAX(EY88,22/24)-MAX(EY87,22/24))*24+(EY88<EY87)*8 -> 2 | FE91: =(MIN(FE88,6/24)-MIN(FE87,6/24)+MAX(FE88,22/24)-MAX(FE87,22/24))*24+(FE88<FE87)*8 -> 6 | FK91: =(MIN(FK88,6/24)-MIN(FK87,6/24)+MAX(FK88,22/24)-MAX(FK87,22/24))*24+(FK88<FK87)*8 -> 0 | FQ91: =(MIN(FQ88,6/24)-MIN(FQ87,6/24)+MAX(FQ88,22/24)-MAX(FQ87,22/24))*24+(FQ88<FQ87)*8 -> 2 | FW91: =(MIN(FW88,6/24)-MIN(FW87,6/24)+MAX(FW88,22/24)-MAX(FW87,22/24))*24+(FW88<FW87)*8 -> 6 | GC91: =(MIN(GC88,6/24)-MIN(GC87,6/24)+MAX(GC88,22/24)-MAX(GC87,22/24))*24+(GC88<GC87)*8 -> 0 | GI91: =(MIN(GI88,6/24)-MIN(GI87,6/24)+MAX(GI88,22/24)-MAX(GI87,22/24))*24+(GI88<GI87)*8 -> 2 | GO91: =(MIN(GO88,6/24)-MIN(GO87,6/24)+MAX(GO88,22/24)-MAX(GO87,22/24))*24+(GO88<GO87)*8 -> 6 | GU91: =(MIN(GU88,6/24)-MIN(GU87,6/24)+MAX(GU88,22/24)-MAX(GU87,22/24))*24+(GU88<GU87)*8 -> 0 | HA91: =(MIN(HA88,6/24)-MIN(HA87,6/24)+MAX(HA88,22/24)-MAX(HA87,22/24))*24+(HA88<HA87)*8 -> 0 | HY91: =SUM(AC91:HF91) -> 80
X93: пр | Y93: пр | HG93: =COUNT(AC93:HF93) -> 0 | HY93: =SUM(AC93:HF93) -> 0
Y94: от | AC94: ОТ | AI94: ОТ | AO94: ОТ | AU94: ОТ | BA94: ОТ | BG94: ОТ | BM94: ОТ | BS94: ОТ | BY94: ОТ | CE94: ОТ | CK94: ОТ | CQ94: ОТ | CW94: ОТ | DC94: ОТ | DI94: ОТ | DO94: ОТ | DU94: ОТ | EA94: ОТ | EG94: ОТ | EM94: ОТ | ES94: ОТ | EY94: ОТ | FE94: ОТ | FK94: ОТ | FQ94: ОТ | FW94: ОТ | GC94: ОТ | GI94: ОТ | HG94: =COUNTIF(AC94:HF94,"ОТ") -> 28
F97: С графиком ознакомлен(а):
F99: 1 | I99: Сапожников А.С. | BL99: "___"______________2020
F100: 2 | I100: Сперанский А.А. | BL100: "___"______________2020
F101: 3 | I101: Купцова Г.И. | BL101: "___"______________2020
F102: 4 | I102: Лагутенко В.А. | BL102: "___"______________2020
F103: 5 | I103: Кипкаева Л.А. | BL103: "___"______________2020
F104: 6 | I104: Морозова Г.Н. | BL104: "___"______________2020
F105: 7 | I105: Нурлиева Е.А. | BL105: "___"______________2020
F106: 8 | I106: Кондратюк Н.В. | BL106: "___"______________2020
F107: 9 | I107: Хомченко Л.Е. | BL107: "___"______________2020
F108: 10 | BL108: "___"______________2020
F109: 11 | BL109: "___"______________2020
F110: 12 | BL110: "___"______________2020
